Workbook

Sheet 区汇总
A1: 附件1
A2: 南通市通州区2025年夏季秸秆机械化还田（含犁耕深翻）作业补助公示汇总表
A3: 补助标准：20元/亩
A4: 镇别 | B4: 申报主体个数 | C4: 补助面积（亩） | D4: 补助资金（元） | E4: 备注
A5: 金沙街道 | B5: 34 | C5: 14,062.84 | D5: =C5*20 -> 281,256.80 | E5: 明细见附表
A6: 金新街道 | B6: 41 | C6: 6,161.06 | D6: =C6*20 -> 123,221.20 | E6: 明细见附表
A7: 兴东街道 | B7: 14 | C7: 2,679.70 | D7: 53,594.00 | E7: 明细见附表
A8: 先锋街道 | B8: 6 | C8: 1,362.54 | D8: 27,250.80 | E8: 明细见附表
A9: 西亭镇 | B9: 849 | C9: 24,784.43 | D9: 495,688.60 | E9: 明细见附表
A10: 二甲镇 | B10: 33 | C10: 3,401.00 | D10: 68,020.00 | E10: 明细见附表
A11: 东社镇 | B11: 72 | C11: 22,200.50 | D11: 444,010.00 | E11: 明细见附表
A12: 十总镇 | B12: 2088 | C12: 67,088.97 | D12: 1,341,779.40 | E12: 明细见附表
A13: 石港镇 | B13: 1785 | C13: 38,225.01 | D13: 764,500.20 | E13: 明细见附表
A14: 刘桥镇 | B14: 4644 | C14: 43,630.96 | D14: 872,619.20 | E14: 明细见附表
A15: 平潮镇 | B15: 2077 | C15: 38,037.34 | D15: 760,746.80 | E15: 明细见附表
A16: 五接镇 | B16: 77 | C16: 18,862.35 | D16: 377,247.00 | E16: 明细见附表
A17: 兴仁镇 | B17: 2198 | C17: 15,154.25 | D17: 303,085.00 | E17: 明细见附表
A18: 川姜镇 | B18: 7 | C18: 945.00 | D18: 18,900.00 | E18: 明细见附表
A20: 合计 | B20: =SUM(B5:B18) -> 13925 | C20: =SUM(C5:C18) -> 296,595.95 | D20: =SUM(D5:D18) -> 5,931,919.00

Sheet 金沙明细
A1: 2025年夏季秸秆机械化还田（含犁耕深翻）作业补助公示明细表
A2: 金沙 镇（区、园、街道）
A3: 补助标准：20元/亩
A4: 序号 | B4: 补助对象 | C4: 作业地点（组） | D4: 作业面积（亩） | E4: 补助资金（元）
A5: 1 | B5: 南通市通州区才付友农业种植专业合作社 | C5: 25、27、29-33、48、49、58-61、64-66、68-71 | D5: 714.42 | E5: =D5*20 -> 14,288.40
A6: 2 | B6: 姚志才 | C6: 35 | D6: 54.00 | E6: =D6*20 -> 1,080.00
A7: 3 | B7: 刘保华 | C7: 47、48、49、50 | D7: 80.00 | E7: 1,600.00
A8: 4 | B8: 房自民 | C8: 25、29、30、32 | D8: 94.00 | E8: 1,880.00
A9: 5 | B9: 曹福来 | C9: 34、44、45 | D9: 18.00 | E9: 360.00
A10: 6 | B10: 南通市通州区金沙街道金余村股份经济合作社 | C10: 9/11/12//18/19/62 | D10: 441.56 | E10: 8,831.20
A11: 7 | B11: 姚志才 | C11: 8、9、10、11、12、13组 | D11: 234.00 | E11: 4,680.00
A12: 8 | B12: 瞿江 | C12: 41-57组 | D12: 431.30 | E12: 8,626.00
A13: 9 | B13: 房自民 | C13: 59组 | D13: 60.00 | E13: 1,200.00
A14: 10 | B14: 刘保华 | C14: 63组 | D14: 20.00 | E14: 400.00
A15: 11 | B15: 李国进 | C15: 31组 | D15: 100.00 | E15: 2,000.00
A16: 12 | B16: 张育华 | C16: 39-43组、57组 | D16: 342.82 | E16: 6,856.40
A17: 13 | B17: 瞿江 | C17: 城东村19、21组、20组 | D17: 139.00 | E17: 2,780.00
A18: 14 | B18: 张水华 | C18: 西4、西16-21、西29组 | D18: 638.90 | E18: 12,778.00
A19: 15 | B19: 张志华 | C19: 西6、7、12、13、14组 | D19: 110.00 | E19: 2,200.00
A20: 16 | B20: 房自民 | C20: 西11组 | D20: 22.00 | E20: 440.00
A21: 17 | B21: 卞有汉 | C21: 金北村8、15、16、17、19、20、22、27组 | D21: 309.41 | E21: 6,188.20
A22: 18 | B22: 瞿炎 | C22: 金北村46-53组，113组 | D22: 458.37 | E22: 9,167.40
A23: 19 | B23: 瞿国华 | C23: 金北村22、24、40、42、44组 | D23: 430.00 | E23: 8,600.00
A24: 20 | B24: 王孝飞 | C24: 金北村72、73、84-87组 | D24: 388.31 | E24: 7,766.20
A25: 21 | B25: 顾水荣 | C25: 金北村67-69组，78、80组 | D25: 424.44 | E25: 8,488.80
A26: 22 | B26: 陶建忠 | C26: 金北村9、10组 | D26: 167.36 | E26: 3,347.20
A27: 23 | B27: 陈海军 | C27: 金北村70、74、76、75、90组 | D27: 351.81 | E27: 7,036.20
A28: 24 | B28: 喻作才 | C28: 金北村54组 | D28: 96.96 | E28: 1,939.20
A29: 25 | B29: 潘海清 | C29: 金北村16、17组 | D29: 52.79 | E29: 1,055.80
A30: 26 | B30: 王国法 | C30: 金北村15、17、18、21、22、23、32组 | D30: 150.12 | E30: 3,002.40
A31: 27 | B31: 房自民 | C31: 金北村26组 | D31: 40.00 | E31: 800.00
A32: 28 | B32: 张启国 | C32: 46组63-66组 | D32: 369.62 | E32: 7,392.40
A33: 29 | B33: 季建明 | C33: 89.91.92.93组 | D33: 81.86 | E33: 1,637.20
A34: 30 | B34: 屈文忠 | C34: 54组 | D34: 72.00 | E34: 1,440.00
A35: 31 | B35: 张圣斌 | C35: 100组 | D35: 92.79 | E35: 1,855.80
A36: 32 | B36: 纪天友 | C36: 54组 | D36: 44.00 | E36: 880.00
A37: 33 | B37: 南通市通粮农业发展有限公司 | C37: 万亩粮田 | D37: 3240.00 | E37: 64,800.00
A38: 34 | B38: 江苏省农垦农业发展股份有限公司海安分公司 | C38: 万亩良田 | D38: 3793.00 | E38: 75,860.00
A41: 合计 | D41: =SUM(D5:D40) -> 14062.84 | E41: =SUM(E5:E40) -> 281,256.80

Sheet 金新明细
A1: 2025年夏季秸秆机械化还田（含犁耕深翻）作业补助公示明细表
A2: 金新 镇（区、园、街道）
A3: 补助标准：20元/亩
A4: 序号 | B4: 补助对象 | C4: 作业地点（组） | D4: 作业面积（亩） | E4: 补助资金（元）
A5: 1 | B5: 董书舟 | C5: 油榨村8、9、15、17组 | D5: 90.00 | E5: =D5*20 -> 1,800.00
A6: 2 | B6: 蒋正洲 | C6: 进东村3、5、6、10、11、12、14、22、23组 | D6: 310.00 | E6: =D6*20 -> 6,200.00
A7: 3 | B7: 武海林 | C7: 进东村1、3、22、25、48组 | D7: 230.00 | E7: 4,600.00
A8: 4 | B8: 吴棉江 | C8: 进东村38、39、40、41组 | D8: 80.00 | E8: 1,600.00
A9: 5 | B9: 陈光本 | C9: 进东村24、25、26、50、55、56组 | D9: 121.00 | E9: 2,420.00
A10: 6 | B10: 尹修国 | C10: 进东村51、52、53、54、55、58组 | D10: 220.00 | E10: 4,400.00
A11: 7 | B11: 徐华建 | C11: 进东村28组 | D11: 57.00 | E11: 1,140.00
A12: 8 | B12: 余为昌 | C12: 进东村53、54组 | D12: 50.00 | E12: 1,000.00
A13: 9 | B13: 黄树录 | C13: 进东村4、6、8、19、20、21组 | D13: 73.00 | E13: 1,460.00
A14: 10 | B14: 吴克强 | C14: 进东村1、27组 | D14: 30.00 | E14: 600.00
A15: 11 | B15: 吴国权 | C15: 进东村9、12、14、15、16、17、18、19组 | D15: 234.00 | E15: 4,680.00
A16: 12 | B16: 陈琴 | C16: 进东村1、2、4、6、8、22、29、30、31、32、33、34、36、37、41、42、43、45、46、48组 | D16: 477.20 | E16: 9,544.00
A17: 13 | B17: 陈小超 | C17: 进东村35、36、37、38、45、46组 | D17: 165.00 | E17: 3,300.00
A18: 14 | B18: 王国贤 | C18: 进东村42、56、57组 | D18: 53.70 | E18: 1,074.00
A19: 15 | B19: 南通市通州区有智粮食种植专业合作社 | C19: 进东村6、33、41组 | D19: 20.00 | E19: 400.00
A20: 16 | B20: 张水华 | C20: 花家渡村17组、16组、15组、14组、13组、12组 | D20: 550.00 | E20: 11,000.00
A21: 17 | B21: 陈琴 | C21: 麒麟桥村31组 | D21: 68.00 | E21: 1,360.00
A22: 18 | B22: 刘德才 | C22: 麒麟桥村1、2、3、4、10组 | D22: 68.00 | E22: 1,360.00
A23: 19 | B23: 高秀香 | C23: 麒麟桥村4、5、6、7、9、10、13、33、34组 | D23: 187.00 | E23: 3,740.00
A24: 20 | B24: 蒋正洲 | C24: 麒麟桥村9、14、15、16组 | D24: 53.00 | E24: 1,060.00
A25: 21 | B25: 焦二平 | C25: 麒麟桥村15、21、27、29、30、31、33、45组 | D25: 260.00 | E25: 5,200.00
A26: 22 | B26: 丁仁照 | C26: 麒麟桥村1、2、17、19、20组 | D26: 100.00 | E26: 2,000.00
A27: 23 | B27: 李飞文 | C27: 麒麟桥村5、18、19、42、43、44组 | D27: 240.00 | E27: 4,800.00
A28: 24 | B28: 王化军 | C28: 麒麟桥村5、10、12、15-18组 | D28: 207.00 | E28: 4,140.00
A29: 25 | B29: 陈林 | C29: 麒麟桥村7、8、28、29、33、34组 | D29: 110.00 | E29: 2,200.00
A30: 26 | B30: 陈兴月 | C30: 麒麟桥村1、2、13、26、28组 | D30: 110.00 | E30: 2,200.00
A31: 27 | B31: 董书舟 | C31: 13.16.19.26、14、18、20、25组 | D31: 198.54 | E31: 3,970.80
A32: 28 | B32: 陈林 | C32: 4组 | D32: 21.00 | E32: 420.00
A33: 29 | B33: 金泽胜 | C33: 10组、11组 | D33: 60.00 | E33: 1,200.00
A34: 30 | B34: 夏明文 | C34: 5、6、8组 | D34: 180.00 | E34: 3,600.00
A35: 31 | B35: 王秀松 | C35: 14组 | D35: 24.30 | E35: 486.00
A36: 32 | B36: 高国付 | C36: 1、2、8、12组 | D36: 60.00 | E36: 1,200.00
A37: 33 | B37: 丁健明 | C37: 26、27、24、25、23、11、8、20、21、19、28 | D37: 432.20 | E37: 8,644.00
A38: 34 | B38: 成彬 | C38: 8、9、10组 | D38: 40.33 | E38: 806.60
A39: 35 | B39: 吴克成 | C39: 18、24、26、27 | D39: 86.85 | E39: 1,737.00
A40: 36 | B40: 陈林 | C40: 界北村16组 | D40: 17.13 | E40: 342.60
A41: 37 | B41: 胡青松 | C41: 界北村12组 | D41: 53.10 | E41: 1,062.00
A42: 38 | B42: 刘成奇 | C42: 界北村1、2组 | D42: 60.20 | E42: 1,204.00
A43: 39 | B43: 王秀松 | C43: 19、23、25、7、21、 11、18、15、20、31组 | D43: 303.51 | E43: 6,070.20
A44: 40 | B44: 贾春凤 | C44: 17、29、15、11、8、 25、22、27、28、26组 | D44: 360.00 | E44: 7,200.00
A45: 41 | B45: 焦二平 | C45: 6、10组 | D45: 100.00 | E45: 2,000.00
A48: 合计 | D48: =SUM(D5:D47) -> 6161.06 | E48: =SUM(E5:E47) -> 123,221.20

Sheet 兴东明细
A1: 2025年夏季秸秆机械化还田（含犁耕深翻）作业补助公示明细表
A2: 兴东 镇（区、园、街道）
A3: 补助标准：20元/亩
A4: 序号 | B4: 补助对象 | C4: 作业地点（组） | D4: 作业面积（亩） | E4: 补助资金（元）
A5: 1 | B5: 夏士华 | C5: 1、2、3、5、6、7、8组 | D5: 176.00 | E5: =D5*20 -> 3,520.00
A6: 2 | B6: 姜爱华 | C6: 东2、3组 | D6: 20.00 | E6: =D6*20 -> 400.00
A7: 3 | B7: 南通市通州区大粮仓粮食种植农地专业合作社 | C7: 南3、4、9组北5、9组 | D7: 228.00 | E7: 4,560.00
A8: 4 | B8: 李永富 | C8: 北9组 | D8: 2.50 | E8: 50.00
A9: 5 | B9: 李永才 | C9: 北9组 | D9: 1.00 | E9: 20.00
A10: 6 | B10: 孙海波 | C10: 东9、10组 | D10: 81.00 | E10: 1,620.00
A11: 7 | B11: 瞿宏均 | C11: 西2、3、4、15组 | D11: 80.00 | E11: 1,600.00
A12: 8 | B12: 蒋建山 | C12: 西10、13、15组 | D12: 235.00 | E12: 4,700.00
A13: 9 | B13: 王学建 | C13: 中10、11、东2、12、13组 | D13: 612.00 | E13: 12,240.00
A14: 10 | B14: 周德祥 | C14: 中10、11、东12组 | D14: 20.00 | E14: 400.00
A15: 11 | B15: 徐金荣 | C15: 南1-5、8-12、14、16、17、东1、2、5、7、10、西3、4、6-8、10-13组 | D15: 930.00 | E15: 18,600.00
A16: 12 | B16: 王华 | C16: 南7、18组 | D16: 42.20 | E16: 844.00
A17: 13 | B17: 房自民 | C17: 东9、11、西12组 | D17: 72.00 | E17: 1,440.00
A18: 14 | B18: 张奇慧 | C18: 南4、5、北7、8组 | D18: 180.00 | E18: 3,600.00
A21: 合计 | D21: =SUM(D5:D20) -> 2679.70 | E21: =SUM(E5:E20) -> 53,594.00

Sheet 先锋明细
A1: 2025年夏季秸秆机械化还田（含犁耕深翻）作业补助公示明细表
A2: 先锋 镇（区、园、街道）
A3: 补助标准：20元/亩
A4: 序号 | B4: 补助对象 | C4: 作业地点（组） | D4: 作业面积（亩） | E4: 补助资金（元）
A5: 1 | B5: 王理军 | C5: 1组、12-19组 | D5: 190.61 | E5: =D5*20 -> 3,812.20
A6: 2 | B6: 王理军 | C6: 10、12、25、37、41组 | D6: 109.20 | E6: 2,184.00
A7: 3 | B7: 王理军 | C7: 1.2.3.25.26组 | D7: 327.75 | E7: 6,555.00
A8: 4 | B8: 南通市通州区厚余粮食种植专业合作社 | C8: 8.9.10.11.12.15组 | D8: 434.50 | E8: 8,690.00
A9: 5 | B9: 王理军 | C9: 6、7、8、16、17组 | D9: 179.43 | E9: 3,588.60
A10: 6 | B10: 王理军 | C10: 17、18、23-26组 | D10: 121.05 | E10: 2,421.00
A13: 合计 | D13: =SUM(D5:D12) -> 1362.54 | E13: =SUM(E5:E12) -> 27,250.80

Sheet 西亭明细
A1: 2025年夏季秸秆机械化还田（含犁耕深翻）作业补助公示明细表
A2: 西亭 镇（区、园、街道）
A3: 补助标准：20元/亩
A4: 序号 | B4: 补助对象 | C4: 作业地点（组） | D4: 作业面积（亩） | E4: 补助资金（元）
A5: 1 | B5: 何允飞 | C5: 2.00 | D5: 2.00 | E5: =D5*20 -> 40.00
A6: 2 | B6: 何允清 | C6: 2.00 | D6: 2.00 | E6: =D6*20 -> 40.00
A7: 3 | B7: 戴卫兵 | C7: 9.00 | D7: 4.00 | E7: 80.00
A8: 4 | B8: 印步然 | C8: 20.00 | D8: 0.50 | E8: 10.00
A9: 5 | B9: 林美芳 | C9: 20.00 | D9: 1.00 | E9: 20.00
A10: 6 | B10: 印建国 | C10: 20.00 | D10: 2.00 | E10: 40.00
A11: 7 | B11: 印金国 | C11: 20.00 | D11: 1.00 | E11: 20.00
A12: 8 | B12: 陈金汉 | C12: 21.00 | D12: 1.20 | E12: 24.00
A13: 9 | B13: 陈建 | C13: 27.00 | D13: 1.80 | E13: 36.00
A14: 10 | B14: 羌慎华 | C14: 27.00 | D14: 3.70 | E14: 74.00
A15: 11 | B15: 戴全义 | C15: 27.00 | D15: 1.20 | E15: 24.00
A16: 12 | B16: 羌建 | C16: 27.00 | D16: 3.00 | E16: 60.00
A17: 13 | B17: 徐胜山 | C17: 27.00 | D17: 2.70 | E17: 54.00
A18: 14 | B18: 姜新云 | C18: 29.00 | D18: 3.95 | E18: 79.00
A19: 15 | B19: 许震希 | C19: 26.00 | D19: 79.89 | E19: 1,597.80
A20: 16 | B20: 许新梁 | C20: 5、6、9、10 | D20: 277.60 | E20: 5,552.00
A21: 17 | B21: 孙海波 | C21: 35、38、39 | D21: 67.80 | E21: 1,356.00
A22: 18 | B22: 何建涛 | C22: 2、4 | D22: 73.77 | E22: 1,475.40
A23: 19 | B23: 王建国 | C23: 3、6、7、9、11、13、23 | D23: 300.00 | E23: 6,000.00
A24: 20 | B24: 孙海波 | C24: 11、14、15 | D24: 133.00 | E24: 2,660.00
A25: 21 | B25: 姜小兵 | C25: 9、10、14 | D25: 132.80 | E25: 2,656.00
A26: 22 | B26: 王孝武 | C26: 16、19、21、22 | D26: 218.80 | E26: 4,376.00
A27: 23 | B27: 周春付 | C27: 3、4、5、7、10、13、20、27、15、1、6、17、18 | D27: 519.70 | E27: 10,394.00
A28: 24 | B28: 高加男 | C28: 1、21、23、24 | D28: 364.60 | E28: 7,292.00
A29: 25 | B29: 姜丽华 | C29: 30、32、33、34、36、37、38、39、40 | D29: 305.80 | E29: 6,116.00
A30: 26 | B30: 许飞 | C30: 35、44、45、46 | D30: 186.20 | E30: 3,724.00
A31: 27 | B31: 朱立其 | C31: 43、47、48、49、58、59 | D31: 190.00 | E31: 3,800.00
A32: 28 | B32: 王锦荣 | C32: 7、15、16、24 | D32: 74.50 | E32: 1,490.00
A33: 29 | B33: 吴豪杰 | C33: 6.00 | D33: 86.50 | E33: 1,730.00
A34: 30 | B34: 戴国仁 | C34: 1.00 | D34: 3.00 | E34: 60.00
A35: 31 | B35: 王云中 | C35: 1.00 | D35: 1.70 | E35: 34.00
A36: 32 | B36: 李吉云 | C36: 1.00 | D36: 0.80 | E36: 16.00
A37: 33 | B37: 戴金明 | C37: 1.00 | D37: 2.40 | E37: 48.00
A38: 34 | B38: 周启东 | C38: 1.00 | D38: 3.00 | E38: 60.00
A39: 35 | B39: 孙树彬 | C39: 1.00 | D39: 3.00 | E39: 60.00
A40: 36 | B40: 张芹英 | C40: 1.00 | D40: 2.80 | E40: 56.00
A41: 37 | B41: 戴兴伟 | C41: 1.00 | D41: 2.50 | E41: 50.00
A42: 38 | B42: 朱淑琴 | C42: 1.00 | D42: 1.60 | E42: 32.00
A43: 39 | B43: 戴涛安 | C43: 1.00 | D43: 4.50 | E43: 90.00
A44: 40 | B44: 王泽冲 | C44: 2.00 | D44: 1.50 | E44: 30.00
A45: 41 | B45: 林启栋 | C45: 2.00 | D45: 1.00 | E45: 20.00
A46: 42 | B46: 林汉清 | C46: 2.00 | D46: 1.00 | E46: 20.00
A47: 43 | B47: 高明成 | C47: 2.00 | D47: 3.00 | E47: 60.00
A48: 44 | B48: 蒋金之 | C48: 2.00 | D48: 1.50 | E48: 30.00
A49: 45 | B49: 黄建光 | C49: 2.00 | D49: 3.00 | E49: 60.00
A50: 46 | B50: 蒋金明 | C50: 2.00 | D50: 3.00 | E50: 60.00
A51: 47 | B51: 高明祥 | C51: 2.00 | D51: 4.00 | E51: 80.00
A52: 48 | B52: 林淑明 | C52: 2.00 | D52: 2.50 | E52: 50.00
A53: 49 | B53: 周少华 | C53: 2.00 | D53: 0.50 | E53: 10.00
A54: 50 | B54: 曹建盛 | C54: 2.00 | D54: 1.00 | E54: 20.00
A55: 51 | B55: 蒋金德 | C55: 2.00 | D55: 3.00 | E55: 60.00
A56: 52 | B56: 顾启军 | C56: 3 | D56: 3.60 | E56: 72.00
A57: 53 | B57: 顾启兵 | C57: 3 | D57: 2.00 | E57: 40.00
A58: 54 | B58: 顾树恋 | C58: 3 | D58: 8.00 | E58: 160.00
A59: 55 | B59: 孙汉明 | C59: 3 | D59: 2.00 | E59: 40.00
A60: 56 | B60: 季翠英 | C60: 3 | D60: 2.00 | E60: 40.00
A61: 57 | B61: 戴国涛 | C61: 3 | D61: 1.00 | E61: 20.00
A62: 58 | B62: 顾井均 | C62: 3 | D62: 1.00 | E62: 20.00
A63: 59 | B63: 蒋建华 | C63: 3 | D63: 1.50 | E63: 30.00
A64: 60 | B64: 蒋育南 | C64: 3 | D64: 1.20 | E64: 24.00
A65: 61 | B65: 顾福恋 | C65: 3 | D65: 1.50 | E65: 30.00
A66: 62 | B66: 蒋育北 | C66: 3 | D66: 2.00 | E66: 40.00
A67: 63 | B67: 耿国芹 | C67: 3 | D67: 0.70 | E67: 14.00
A68: 64 | B68: 顾福海 | C68: 4 | D68: 3.50 | E68: 70.00
A69: 65 | B69: 顾福成 | C69: 4 | D69: 4.00 | E69: 80.00
A70: 66 | B70: 吴建成 | C70: 4 | D70: 1.00 | E70: =D70*20 -> 20.00
A71: 67 | B71: 李竹英 | C71: 4 | D71: 1.50 | E71: 30.00
A72: 68 | B72: 顾建 | C72: 4 | D72: 2.60 | E72: 52.00
A73: 69 | B73: 徐小菊 | C73: 4 | D73: 1.00 | E73: 20.00
A74: 70 | B74: 戴金成 | C74: 4 | D74: 1.30 | E74: 26.00
A75: 71 | B75: 徐云 | C75: 4 | D75: 3.00 | E75: 60.00
A76: 72 | B76: 何之 | C76: 4 | D76: 2.00 | E76: 40.00
A77: 73 | B77: 陈启贤 | C77: 4 | D77: 1.50 | E77: 30.00
A78: 74 | B78: 顾德锋 | C78: 5.00 | D78: 2.00 | E78: 40.00
A79: 75 | B79: 潘金林 | C79: 5.00 | D79: 3.70 | E79: 74.00
A80: 76 | B80: 戴学中 | C80: 6.00 | D80: 4.00 | E80: 80.00
A81: 77 | B81: 许金国 | C81: 7.00 | D81: 1.50 | E81: 30.00
A82: 78 | B82: 曹金汉 | C82: 7.00 | D82: 1.50 | E82: 30.00
A83: 79 | B83: 朱新华 | C83: 7.00 | D83: 2.00 | E83: 40.00
A84: 80 | B84: 王承芳 | C84: 7.00 | D84: 2.50 | E84: 50.00
A85: 81 | B85: 汤学桂 | C85: 7.00 | D85: 3.00 | E85: 60.00
A86: 82 | B86: 张永国 | C86: 7.00 | D86: 1.20 | E86: 24.00
A87: 83 | B87: 汤永新 | C87: 7.00 | D87: 2.50 | E87: 50.00
A88: 84 | B88: 汤建中 | C88: 7.00 | D88: 3.00 | E88: 60.00
A89: 85 | B89: 汤永兵 | C89: 7.00 | D89: 3.00 | E89: 60.00
A90: 86 | B90: 张武成 | C90: 7.00 | D90: 3.50 | E90: 70.00
A91: 87 | B91: 张武新 | C91: 7.00 | D91: 3.00 | E91: 60.00
A92: 88 | B92: 汤学明 | C92: 7.00 | D92: 1.00 | E92: 20.00
A93: 89 | B93: 成校 | C93: 7.00 | D93: 0.50 | E93: 10.00
A94: 90 | B94: 汤永全 | C94: 7.00 | D94: 1.00 | E94: 20.00
A95: 91 | B95: 王子清 | C95: 8.00 | D95: 2.80 | E95: 56.00
A96: 92 | B96: 严明珍 | C96: 8.00 | D96: 1.00 | E96: 20.00
A97: 93 | B97: 潘金元 | C97: 8.00 | D97: 1.00 | E97: 20.00
A98: 94 | B98: 李金华 | C98: 8.00 | D98: 1.00 | E98: 20.00
A99: 95 | B99: 曹建忠 | C99: 8.00 | D99: 1.50 | E99: 30.00
A100: 96 | B100: 曹金娟 | C100: 8.00 | D100: 4.00 | E100: 80.00
A101: 97 | B101: 程锦炎 | C101: 9.00 | D101: 0.60 | E101: 12.00
A102: 98 | B102: 顾金慈 | C102: 9.00 | D102: 4.00 | E102: 80.00
A103: 99 | B103: 顾金成 | C103: 9.00 | D103: 6.50 | E103: 130.00
A104: 100 | B104: 王新霞 | C104: 9.00 | D104: 2.20 | E104: 44.00
A105: 101 | B105: 王建国 | C105: 9.00 | D105: 5.00 | E105: 100.00
A106: 102 | B106: 王建忠 | C106: 9.00 | D106: 4.00 | E106: 80.00
A107: 103 | B107: 张洪美 | C107: 9.00 | D107: 1.20 | E107: 24.00
A108: 104 | B108: 徐德兴 | C108: 10.00 | D108: 3.00 | E108: 60.00
A109: 105 | B109: 顾味和 | C109: 10.00 | D109: 1.50 | E109: 30.00
A110: 106 | B110: 顾达 | C110: 10.00 | D110: 2.00 | E110: 40.00
A111: 107 | B111: 顾建华 | C111: 10.00 | D111: 2.50 | E111: 50.00
A112: 108 | B112: 赵炳中 | C112: 10.00 | D112: 1.50 | E112: 30.00
A113: 109 | B113: 顾立新 | C113: 10.00 | D113: 1.80 | E113: 36.00
A114: 110 | B114: 顾道泽 | C114: 10.00 | D114: 3.00 | E114: 60.00
A115: 111 | B115: 季学成 | C115: 10.00 | D115: 4.00 | E115: 80.00
A116: 112 | B116: 徐德成 | C116: 10.00 | D116: 2.70 | E116: 54.00
A117: 113 | B117: 徐华 | C117: 10.00 | D117: 0.70 | E117: 14.00
A118: 114 | B118: 徐春 | C118: 10.00 | D118: 1.50 | E118: 30.00
A119: 115 | B119: 戴新田 | C119: 10.00 | D119: 3.00 | E119: 60.00
A120: 116 | B120: 于建均 | C120: 10.00 | D120: 1.00 | E120: 20.00
A121: 117 | B121: 戴建中 | C121: 10.00 | D121: 2.00 | E121: 40.00
A122: 118 | B122: 于跃新 | C122: 10.00 | D122: 1.80 | E122: 36.00
A123: 119 | B123: 钱洪林 | C123: 10.00 | D123: 1.60 | E123: 32.00
A124: 120 | B124: 徐丽 | C124: 10.00 | D124: 1.50 | E124: 30.00
A125: 121 | B125: 蒋培新 | C125: 11.00 | D125: 4.50 | E125: 90.00
A126: 122 | B126: 陈炳清 | C126: 11.00 | D126: 3.50 | E126: 70.00
A127: 123 | B127: 陶明芝 | C127: 11.00 | D127: 1.00 | E127: 20.00
A128: 124 | B128: 赵淑云 | C128: 11.00 | D128: 3.00 | E128: 60.00
A129: 125 | B129: 赵永华 | C129: 11.00 | D129: 0.60 | E129: 12.00
A130: 126 | B130: 顾建华 | C130: 11.00 | D130: 2.00 | E130: 40.00
A131: 127 | B131: 张建 | C131: 11.00 | D131: 1.00 | E131: 20.00
A132: 128 | B132: 张兴荣 | C132: 11.00 | D132: 1.10 | E132: 22.00
A133: 129 | B133: 陈小龙 | C133: 11.00 | D133: 2.00 | E133: 40.00
A134: 130 | B134: 张锦书 | C134: 11.00 | D134: 1.20 | E134: =D134*20 -> 24.00
A135: 131 | B135: 蒋建忠 | C135: 11.00 | D135: 1.00 | E135: 20.00
A136: 132 | B136: 于锦益 | C136: 12.00 | D136: 1.30 | E136: 26.00
A137: 133 | B137: 于九龙 | C137: 12.00 | D137: 3.50 | E137: 70.00
A138: 134 | B138: 顾潭 | C138: 12.00 | D138: 1.20 | E138: 24.00
A139: 135 | B139: 顾克杰 | C139: 12.00 | D139: 2.70 | E139: 54.00
A140: 136 | B140: 吴吉标 | C140: 12.00 | D140: 3.50 | E140: 70.00
A141: 137 | B141: 于志成 | C141: 12.00 | D141: 3.00 | E141: 60.00
A142: 138 | B142: 顾银华 | C142: 12.00 | D142: 1.50 | E142: 30.00
A143: 139 | B143: 姜建平 | C143: 12.00 | D143: 1.30 | E143: 26.00
A144: 140 | B144: 顾进新 | C144: 12.00 | D144: 2.00 | E144: 40.00
A145: 141 | B145: 徐夕英 | C145: 12.00 | D145: 1.30 | E145: 26.00
A146: 142 | B146: 张有中 | C146: 13.00 | D146: 2.00 | E146: 40.00
A147: 143 | B147: 张杰 | C147: 13.00 | D147: 0.80 | E147: 16.00
A148: 144 | B148: 顾均 | C148: 13.00 | D148: 2.00 | E148: 40.00
A149: 145 | B149: 朱雪成 | C149: 13.00 | D149: 2.00 | E149: 40.00
A150: 146 | B150: 冯义良 | C150: 13.00 | D150: 3.00 | E150: 60.00
A151: 147 | B151: 陆吉云 | C151: 13.00 | D151: 2.00 | E151: 40.00
A152: 148 | B152: 赵明德 | C152: 13.00 | D152: 1.50 | E152: 30.00
A153: 149 | B153: 高学余 | C153: 13.00 | D153: 2.00 | E153: 40.00
A154: 150 | B154: 严洁云 | C154: 13.00 | D154: 2.00 | E154: 40.00
A155: 151 | B155: 于淑兰 | C155: 13.00 | D155: 1.20 | E155: 24.00
A156: 152 | B156: 陈永美 | C156: 13.00 | D156: 2.00 | E156: 40.00
A157: 153 | B157: 丁学珍 | C157: 13.00 | D157: 1.50 | E157: 30.00
A158: 154 | B158: 冯义祥 | C158: 13.00 | D158: 2.00 | E158: 40.00
A159: 155 | B159: 王志清 | C159: 13.00 | D159: 2.00 | E159: 40.00
A160: 156 | B160: 顾树容 | C160: 14.00 | D160: 2.50 | E160: 50.00
A161: 157 | B161: 于圣芝 | C161: 14.00 | D161: 2.00 | E161: 40.00
A162: 158 | B162: 于井国 | C162: 14.00 | D162: 3.00 | E162: 60.00
A163: 159 | B163: 张顺娟 | C163: 14.00 | D163: 2.00 | E163: 40.00
A164: 160 | B164: 何林清 | C164: 14.00 | D164: 1.50 | E164: 30.00
A165: 161 | B165: 刘锦全 | C165: 14.00 | D165: 1.50 | E165: 30.00
A166: 162 | B166: 何峰 | C166: 14.00 | D166: 2.00 | E166: 40.00
A167: 163 | B167: 王国均 | C167: 14.00 | D167: 2.00 | E167: 40.00
A168: 164 | B168: 王建 | C168: 14.00 | D168: 2.00 | E168: 40.00
A169: 165 | B169: 赵红霞 | C169: 14.00 | D169: 2.00 | E169: 40.00
A170: 166 | B170: 陈锦芝 | C170: 14.00 | D170: 2.50 | E170: 50.00
A171: 167 | B171: 陈卫东 | C171: 14.00 | D171: 1.50 | E171: 30.00
A172: 168 | B172: 陈卫兵 | C172: 14.00 | D172: 1.50 | E172: 30.00
A173: 169 | B173: 陈锦龙 | C173: 14.00 | D173: 2.00 | E173: 40.00
A174: 170 | B174: 陈建 | C174: 14.00 | D174: 1.50 | E174: 30.00
A175: 171 | B175: 马建华 | C175: 15.00 | D175: 2.00 | E175: 40.00
A176: 172 | B176: 顾朝兵 | C176: 15.00 | D176: 2.00 | E176: 40.00
A177: 173 | B177: 顾金成 | C177: 15.00 | D177: 2.00 | E177: 40.00
A178: 174 | B178: 蒋培新 | C178: 15.00 | D178: 3.00 | E178: 60.00
A179: 175 | B179: 赵进 | C179: 15.00 | D179: 2.00 | E179: 40.00
A180: 176 | B180: 蒋瑞兰 | C180: 15.00 | D180: 3.00 | E180: 60.00
A181: 177 | B181: 蒋国成 | C181: 15.00 | D181: 3.00 | E181: 60.00
A182: 178 | B182: 何进清 | C182: 15.00 | D182: 3.00 | E182: 60.00
A183: 179 | B183: 顾金坤 | C183: 15.00 | D183: 2.00 | E183: 40.00
A184: 180 | B184: 李步英 | C184: 15.00 | D184: 2.00 | E184: 40.00
A185: 181 | B185: 何云清 | C185: 15.00 | D185: 1.50 | E185: 30.00
A186: 182 | B186: 孙建荣 | C186: 15.00 | D186: 1.50 | E186: 30.00
A187: 183 | B187: 蒋国华 | C187: 15.00 | D187: 3.00 | E187: 60.00
A188: 184 | B188: 何连清 | C188: 15.00 | D188: 1.50 | E188: 30.00
A189: 185 | B189: 周志光 | C189: 15.00 | D189: 2.00 | E189: 40.00
A190: 186 | B190: 蒋建中 | C190: 15.00 | D190: 2.00 | E190: 40.00
A191: 187 | B191: 蒋建中 | C191: 15.00 | D191: 1.50 | E191: 30.00
A192: 188 | B192: 蒋兵余 | C192: 15.00 | D192: 2.00 | E192: 40.00
A193: 189 | B193: 蒋军成 | C193: 15.00 | D193: 2.00 | E193: 40.00
A194: 190 | B194: 黄德兴 | C194: 15.00 | D194: 1.50 | E194: 30.00
A195: 191 | B195: 秦言 | C195: 15.00 | D195: 1.50 | E195: 30.00
A196: 192 | B196: 顾金涛 | C196: 15.00 | D196: 1.50 | E196: 30.00
A197: 193 | B197: 李昌国 | C197: 17.00 | D197: 1.30 | E197: 26.00
A198: 194 | B198: 徐炎 | C198: 17.00 | D198: 2.30 | E198: =D198*20 -> 46.00
A199: 195 | B199: 胡井泉 | C199: 17.00 | D199: 0.40 | E199: 8.00
A200: 196 | B200: 羌学成 | C200: 17.00 | D200: 2.20 | E200: 44.00
... 654 more rows

Sheet 二甲明细
A1: 2025年夏季秸秆机械化还田（含犁耕深翻）作业补助公示明细表
A2: 二甲 镇（区、园、街道）
A3: 补助标准：20元/亩
A4: 序号 | B4: 补助对象 | C4: 作业地点（组） | D4: 作业面积（亩） | E4: 补助资金（元）
A5: 1 | B5: 高怀平 | C5: 46、47、48组 | D5: 155.00 | E5: =D5*20 -> 3,100.00
A6: 2 | B6: 徐华建 | C6: 35组 | D6: 35.00 | E6: =D6*20 -> 700.00
A7: 3 | B7: 高怀平 | C7: 龙城路、14组、7组、8组、13组 | D7: 260.00 | E7: 5,200.00
A8: 4 | B8: 高平书 | C8: 21组、25组、9组、30组 | D8: 95.00 | E8: 1,900.00
A9: 5 | B9: 高怀平 | C9: 宝云山村44、45、48组 | D9: 65.00 | E9: 1,300.00
A10: 6 | B10: 陈乃东 | C10: 二甲镇宝云山村17组 | D10: 23.00 | E10: 460.00
A11: 7 | B11: 赵庆全 | C11: 10组、17组、23组、27组、34组、41组 | D11: 177.00 | E11: 3,540.00
A12: 8 | B12: 金泽胜 | C12: 袁南居（42/45组） | D12: 65.00 | E12: 1,300.00
A13: 9 | B13: 江顺高 | C13: 袁南居（9/48/49组） | D13: 40.00 | E13: 800.00
A14: 10 | B14: 武海林 | C14: 2、5、7、9、11、13、15、16、18、29、31、46、47、48组 | D14: 418.00 | E14: 8,360.00
A15: 11 | B15: 季昌林 | C15: 袁南居5、6、15、16、19、21、30组 | D15: 245.00 | E15: 4,900.00
A16: 12 | B16: 李飞文 | C16: 袁南居11、12、36、37组 | D16: 57.00 | E16: 1,140.00
A17: 13 | B17: 丁云满 | C17: 袁南居8、12、13、14组 | D17: 105.00 | E17: 2,100.00
A18: 14 | B18: 徐以梅 | C18: 袁南居5、15、17组 | D18: 65.00 | E18: 1,300.00
A19: 15 | B19: 王本好 | C19: 袁南居10、20、32组 | D19: 87.00 | E19: 1,740.00
A20: 16 | B20: 黄国付 | C20: 袁南居9、18、19、23组 | D20: 115.00 | E20: 2,300.00
A21: 17 | B21: 李小伟 | C21: 袁南居3、4、5、6、14组 | D21: 105.00 | E21: 2,100.00
A22: 18 | B22: 张记禹 | C22: 袁南居40组 | D22: 20.00 | E22: 400.00
A23: 19 | B23: 金泽胜 | C23: 六甲镇村38-47组 | D23: 168.00 | E23: 3,360.00
A24: 20 | B24: 吴棉江 | C24: 六甲镇村35、36组 | D24: 77.00 | E24: 1,540.00
A25: 21 | B25: 季昌林 | C25: 六甲镇村8-12组 | D25: 45.00 | E25: 900.00
A26: 22 | B26: 胡道香 | C26: 六甲镇村45-46组 | D26: 150.00 | E26: 3,000.00
A27: 23 | B27: 张传胜 | C27: 六甲镇村7、23组 | D27: 88.00 | E27: 1,760.00
A28: 24 | B28: 李习明 | C28: 六甲镇村6组 | D28: 33.00 | E28: 660.00
A29: 25 | B29: 赵庆全 | C29: 六甲镇村19组 | D29: 20.00 | E29: 400.00
A30: 26 | B30: 高平书 | C30: 六甲镇村2、30组 | D30: 94.00 | E30: 1,880.00
A31: 27 | B31: 袁春玉 | C31: 六甲镇村19组 | D31: 22.00 | E31: 440.00
A32: 28 | B32: 陈凤英 | C32: 通运桥村78、7、81、8、9 | D32: 45.00 | E32: 900.00
A33: 29 | B33: 徐华建 | C33: 通运桥村13、14、15、16、17、81、82、14、2、1 | D33: 195.00 | E33: 3,900.00
A34: 30 | B34: 江顺高 | C34: 通运桥村14组、37组 | D34: 137.00 | E34: 2,740.00
A35: 31 | B35: 陈兴月 | C35: 通运桥村4、5、6、18、19、20、21 | D35: 115.00 | E35: 2,300.00
A36: 32 | B36: 袁春玉 | C36: 通运桥村31、14组 | D36: 60.00 | E36: 1,200.00
A37: 33 | B37: 高平书 | C37: 通运桥村48、44组 | D37: 20.00 | E37: 400.00
A40: 合计 | D40: =SUM(D5:D39) -> 3401.00 | E40: =SUM(E5:E39) -> 68,020.00

Sheet 东社明细
A1: 2025年夏季秸秆机械化还田（含犁耕深翻）作业补助公示明细表
A2: 东社 镇（区、园、街道）
A3: 补助标准：20元/亩
A4: 序号 | B4: 补助对象 | C4: 作业地点（组） | D4: 作业面积（亩） | E4: 补助资金（元）
A5: 1 | B5: 曹树成 | C5: 河东村8组 | D5: 23.00 | E5: =D5*20 -> 460.00
A6: 2 | B6: 高菊梅 | C6: 滥港桥6、8、9、10、15、16、17、20、30组 | D6: 352.70 | E6: =D6*20 -> 7,054.00
A7: 3 | B7: 曹新林 | C7: 滥港桥2、3、11、12、13、14、15、16组 | D7: 340.10 | E7: 6,802.00
A8: 4 | B8: 陈义 | C8: 滥港桥15、17、29、30、37、31、32、33、34、35组 | D8: 231.10 | E8: 4,622.00
A9: 5 | B9: 顾锁平 | C9: 滥港桥22、26、27、28、29 组 | D9: 149.70 | E9: 2,994.00
A10: 6 | B10: 瞿友梅 | C10: 严北村13、14组 | D10: 330.00 | E10: 6,600.00
A11: 7 | B11: 严艳华 | C11: 严北村5、29组 | D11: 180.00 | E11: 3,600.00
A12: 8 | B12: 王军 | C12: 严北村17、18组 | D12: 360.00 | E12: 7,200.00
A13: 9 | B13: 颜子寿 | C13: 严北村1-12、16、19-30组 | D13: 3710.00 | E13: 74,200.00
A14: 10 | B14: 瞿志华 | C14: 严北村2-5组 | D14: 485.00 | E14: 9,700.00
A15: 11 | B15: 邱永进 | C15: 严北村17组 | D15: 40.00 | E15: 800.00
A16: 12 | B16: 张立峰 | C16: 严北村16组 | D16: 38.00 | E16: 760.00
A17: 13 | B17: 王建国 | C17: 唐洪村12、13组 | D17: 66.00 | E17: 1,320.00
A18: 14 | B18: 严艳华 | C18: 唐洪村12、14、15、16组 | D18: 80.00 | E18: 1,600.00
A19: 15 | B19: 颜子寿 | C19: 唐洪村1、2、3、4、5、6、7、8组 | D19: 1294.00 | E19: 25,880.00
A20: 16 | B20: 林荣俊 | C20: 唐洪村1、2、3、4、5、6、7、8、10组 | D20: 465.00 | E20: 9,300.00
A21: 17 | B21: 陈冲 | C21: 香台村1、2、4、5、6、7、8、9、15组 | D21: 402.30 | E21: 8,046.00
A22: 18 | B22: 黄涛 | C22: 香台村5组 | D22: 85.00 | E22: 1,700.00
A23: 19 | B23: 严艳华 | C23: 香台村13、14、15组 | D23: 165.00 | E23: 3,300.00
A24: 20 | B24: 严晓忠 | C24: 庆丰居5、17-23、32-36组、37组 | D24: 549.70 | E24: 10,994.00
A25: 21 | B25: 张大方 | C25: 庆丰居19-25、29、35-37、39-42组 | D25: 753.80 | E25: 15,076.00
A26: 22 | B26: 张大川 | C26: 庆丰居1、3-6、13、37、38组 | D26: 364.40 | E26: 7,288.00
A27: 23 | B27: 张正流 | C27: 庆丰居26、42、43组 | D27: 153.20 | E27: 3,064.00
A28: 24 | B28: 瞿林 | C28: 庆丰居1组 | D28: 37.60 | E28: 752.00
A29: 25 | B29: 洪名信 | C29: 庆丰居14-16、27、28、32、33组 | D29: 467.10 | E29: 9,342.00
A30: 26 | B30: 尹仕山 | C30: 庆丰居8-11、30、31组 | D30: 332.50 | E30: 6,650.00
A31: 27 | B31: 张凤华 | C31: 庆丰居1-7组、13组、32组、34-35组 | D31: 513.50 | E31: 10,270.00
A32: 28 | B32: 王建彬 | C32: 杨港居10、15、18、23、24组 | D32: 313.00 | E32: 6,260.00
A33: 29 | B33: 徐宜明 | C33: 杨港居20、21、24组 | D33: 56.00 | E33: 1,120.00
A34: 30 | B34: 邱永进 | C34: 杨港居2、12、13组 | D34: 106.00 | E34: 2,120.00
A35: 31 | B35: 颜子寿 | C35: 杨港居8、9组 | D35: 61.00 | E35: 1,220.00
A36: 32 | B36: 吴建军 | C36: 杨港居20组 | D36: 51.00 | E36: 1,020.00
A37: 33 | B37: 陶建忠 | C37: 杨港居22、24组 | D37: 101.00 | E37: 2,020.00
A38: 34 | B38: 瞿光春 | C38: 白居2、10、11组 | D38: 268.00 | E38: 5,360.00
A39: 35 | B39: 陈亚华 | C39: 白居9、26组 | D39: 290.00 | E39: 5,800.00
A40: 36 | B40: 朱松平 | C40: 白居12、14、16组 | D40: 237.00 | E40: 4,740.00
A41: 37 | B41: 季锡华 | C41: 白居21、22、23、26、28、29组 | D41: 366.00 | E41: 7,320.00
A42: 38 | B42: 胡飞 | C42: 白居4、5、8组 | D42: 265.00 | E42: 5,300.00
A43: 39 | B43: 丁云满 | C43: 白居6、7、15组 | D43: 277.00 | E43: 5,540.00
A44: 40 | B44: 刘保华 | C44: 白居32组 | D44: 18.00 | E44: 360.00
A45: 41 | B45: 顾喻建 | C45: 陈墩村18-20、26-31组 | D45: 570.00 | E45: 11,400.00
A46: 42 | B46: 钟吉余 | C46: 陈墩村28-31组 | D46: 280.00 | E46: 5,600.00
A47: 43 | B47: 钟吉余 | C47: 陈墩村20-27、31组 | D47: 725.00 | E47: 14,500.00
A48: 44 | B48: 周春付 | C48: 陈墩村11-15组 | D48: 290.00 | E48: 5,800.00
A49: 45 | B49: 季宏新 | C49: 陈墩村4、7-11、15组 | D49: 126.70 | E49: 2,534.00
A50: 46 | B50: 刘保华 | C50: 陈墩村4、5、17组 | D50: 74.90 | E50: 1,498.00
A51: 47 | B51: 李林冲 | C51: 陈墩村3、17组 | D51: 44.80 | E51: 896.00
A52: 48 | B52: 曹树成 | C52: 东社居6、7、8组 | D52: 554.00 | E52: 11,080.00
A53: 49 | B53: 张雄 | C53: 东社居6组 | D53: 30.00 | E53: 600.00
A54: 50 | B54: 陈亚华 | C54: 福利村8、9、10、11组 | D54: 119.00 | E54: 2,380.00
A55: 51 | B55: 张雄 | C55: 横马村12、13组 | D55: 220.00 | E55: =D55*20 -> 4,400.00
A56: 52 | B56: 朱松平 | C56: 横马村13组 | D56: 162.00 | E56: 3,240.00
A57: 53 | B57: 丁祖方 | C57: 横马村11、12、13、14、16组 | D57: 473.00 | E57: 9,460.00
A58: 54 | B58: 陈蓓蓓 | C58: 横马村6、7、10、12、14、16组 | D58: 387.00 | E58: 7,740.00
A59: 55 | B59: 高卫红 | C59: 横马村16、10、11组 | D59: 53.00 | E59: 1,060.00
A60: 56 | B60: 刘保华 | C60: 横马村4、5、7组 | D60: 19.50 | E60: 390.00
A61: 57 | B61: 王士平 | C61: 苴西村19、2、6组 | D61: 78.00 | E61: 1,560.00
A62: 58 | B62: 范新忠 | C62: 五甲苴居14-35组 | D62: 1530.00 | E62: 30,600.00
A63: 59 | B63: 王钦权 | C63: 五甲苴居1、2、3、4、5、6、7、10、12、13、14、25组 | D63: 740.00 | E63: 14,800.00
A64: 60 | B64: 南通市通州区金通联粮食种植专业合作社 | C64: 五甲苴居28、29、30组 | D64: 160.00 | E64: 3,200.00
A65: 61 | B65: 曹荣 | C65: 五甲苴居23/36组 | D65: 52.00 | E65: 1,040.00
A66: 62 | B66: 曹汉明 | C66: 五马路3、6、12组 | D66: 37.00 | E66: 740.00
A67: 63 | B67: 刘保华 | C67: 五马路17组 | D67: 25.00 | E67: 500.00
A68: 64 | B68: 南通盛园水果种植有限公司 | C68: 新街村8组 | D68: 100.00 | E68: 2,000.00
A69: 65 | B69: 王建民 | C69: 兴隆灶村7、17、19组 | D69: 190.00 | E69: 3,800.00
A70: 66 | B70: 李林冲 | C70: 兴隆灶村1、3-7、37组 | D70: 132.00 | E70: 2,640.00
A71: 67 | B71: 瞿林 | C71: 兴隆灶村37、38、39、44、45、48、49、50、51、52、57、59组 | D71: 280.00 | E71: 5,600.00
A72: 68 | B72: 张忠 | C72: 兴隆灶村33、35、56-59组 | D72: 110.00 | E72: 2,200.00
A73: 69 | B73: 纪飞跃 | C73: 兴隆灶村19、26组 | D73: 20.00 | E73: 400.00
A74: 70 | B74: 胡飞 | C74: 兴隆灶村54、9、14组 | D74: 40.00 | E74: 800.00
A75: 71 | B75: 瞿光春 | C75: 中和村9、11组 | D75: 103.80 | E75: 2,076.00
A76: 72 | B76: 钟吉余 | C76: 中和村32、39、40组 | D76: 96.10 | E76: 1,922.00
A79: 合计 | D79: =SUM(D5:D78) -> 22200.50 | E79: =SUM(E5:E78) -> 444,010.00

Sheet 十总明细
A1: 2025年夏季秸秆机械化还田（含犁耕深翻）作业补助公示明细表
A2: 十总 镇（区、园、街道）
A3: 补助标准：20元/亩
A4: 序号 | B4: 补助对象 | C4: 作业地点（组） | D4: 作业面积（亩） | E4: 补助资金（元）
A5: 1 | B5: 曹建华 | C5: 志新村32、33、34、35、36、37组 | D5: 570.00 | E5: =D5*20 -> 11,400.00
A6: 2 | B6: 曹晓雯 | C6: 志新村48、49组 | D6: 127.00 | E6: =D6*20 -> 2,540.00
A7: 3 | B7: 钟亦明 | C7: 志新村34、38、39、40、41、46组 | D7: 540.00 | E7: 10,800.00
A8: 4 | B8: 张烈骏 | C8: 志新村26组 | D8: 150.00 | E8: 3,000.00
A9: 5 | B9: 董祥 | C9: 志新村10、25组 | D9: 102.70 | E9: 2,054.00
A10: 6 | B10: 颜子寿 | C10: 志新村31、44、45、46组 | D10: 402.00 | E10: 8,040.00
A11: 7 | B11: 钟士钱 | C11: 志新村34、38、39、46组 | D11: 444.00 | E11: 8,880.00
A12: 8 | B12: 徐娟 | C12: 志新村4、2、3、11组 | D12: 210.00 | E12: 4,200.00
A13: 9 | B13: 周月军 | C13: 志新村26组 | D13: 33.00 | E13: 660.00
A14: 10 | B14: 钟士钱 | C14: 二爻居39组、41组、44组 | D14: 560.00 | E14: 11,200.00
A15: 11 | B15: 孙志辉 | C15: 二爻居48组、49组 | D15: 232.00 | E15: 4,640.00
A16: 12 | B16: 刘欢 | C16: 二爻居45组、47组 | D16: 109.00 | E16: 2,180.00
A17: 13 | B17: 张汉军 | C17: 二爻居1组、2组、3组、4组、16组、17组、22组、34组、43组 | D17: 525.00 | E17: 10,500.00
A18: 14 | B18: 陈国华 | C18: 二爻居47组、50组 | D18: 127.00 | E18: 2,540.00
A19: 15 | B19: 曹晓雯 | C19: 二爻居9组、13组、27组、29组 | D19: 155.80 | E19: 3,116.00
A20: 16 | B20: 崔建 | C20: 二爻居33组、35组 | D20: 240.00 | E20: 4,800.00
A21: 17 | B21: 徐锡荣 | C21: 二爻居34组 | D21: 16.00 | E21: 320.00
A22: 18 | B22: 陈国华 | C22: 迎阳村 1、23、31、32组 | D22: 418.00 | E22: 8,360.00
A23: 19 | B23: 李林冲 | C23: 迎阳村28、29组 | D23: 148.00 | E23: 2,960.00
A24: 20 | B24: 张汉军 | C24: 迎阳村27、28、30组 | D24: 153.50 | E24: 3,070.00
A25: 21 | B25: 南通市通州区 厚余粮食种植专业合作社 | C25: 迎阳村1-16组 | D25: 505.00 | E25: 10,100.00
A26: 22 | B26: 张晓南 | C26: 迎阳村32-35组 | D26: 343.00 | E26: 6,860.00
A27: 23 | B27: 徐锡荣 | C27: 迎阳村25、26、27组 | D27: 484.19 | E27: 9,683.80
A28: 24 | B28: 江苏丰科农业科技发展有限公司 | C28: 迎阳村45组 | D28: 52.00 | E28: 1,040.00
A29: 25 | B29: 张为民 | C29: 柏树墩村2组 | D29: 2.00 | E29: 40.00
A30: 26 | B30: 陈云飞 | C30: 柏树墩村3组 | D30: 0.45 | E30: 9.00
A31: 27 | B31: 曹学琪 | C31: 柏树墩村3组 | D31: 3.15 | E31: 63.00
A32: 28 | B32: 徐景新 | C32: 柏树墩村3组 | D32: 0.77 | E32: 15.40
A33: 29 | B33: 张为标 | C33: 柏树墩村3组 | D33: 2.30 | E33: 46.00
A34: 30 | B34: 卫长祥 | C34: 柏树墩村3组 | D34: 1.78 | E34: 35.60
A35: 31 | B35: 卫有军 | C35: 柏树墩村3组 | D35: 1.52 | E35: 30.40
A36: 32 | B36: 张胜徐 | C36: 柏树墩村3组 | D36: 0.85 | E36: 17.00
A37: 33 | B37: 瞿成 | C37: 柏树墩村3组 | D37: 1.30 | E37: 26.00
A38: 34 | B38: 邢加林 | C38: 柏树墩村33组 | D38: 3.50 | E38: 70.00
A39: 35 | B39: 邢怀 | C39: 柏树墩村34组 | D39: 1.50 | E39: 30.00
A40: 36 | B40: 吴建 | C40: 柏树墩村34组 | D40: 13.00 | E40: 260.00
A41: 37 | B41: 邱军 | C41: 柏树墩27组 | D41: 1.00 | E41: 20.00
A42: 38 | B42: 曹子豪 | C42: 柏树墩27组 | D42: 2.00 | E42: 40.00
A43: 39 | B43: 季锡奎 | C43: 柏树墩27组 | D43: 1.00 | E43: 20.00
A44: 40 | B44: 黄本荣 | C44: 柏树墩29组 | D44: 8.00 | E44: 160.00
A45: 41 | B45: 张圣君 | C45: 柏树墩村28、29、30、31、33组 | D45: 966.00 | E45: 19,320.00
A46: 42 | B46: 包华 | C46: 柏树墩村32、34组 | D46: 238.00 | E46: 4,760.00
A47: 43 | B47: 蒋兵 | C47: 柏树墩村2、5、7、10、18、19、11、21组 | D47: 336.00 | E47: 6,720.00
A48: 44 | B48: 蒋卫卫 | C48: 柏树墩村1、6、22、24、25组 | D48: 340.00 | E48: 6,800.00
A49: 45 | B49: 吴旭东 | C49: 柏树墩村6、7、10、12、14、15、16、17、18、26组 | D49: 380.00 | E49: 7,600.00
A50: 46 | B50: 季明 | C50: 柏树墩村13、14组 | D50: 72.00 | E50: 1,440.00
A51: 47 | B51: 奚卫星 | C51: 柏树墩村16、23、24、25组 | D51: 200.00 | E51: 4,000.00
A52: 48 | B52: 冒瑞祥 | C52: 柏树墩村11、12组 | D52: 23.45 | E52: 469.00
A53: 49 | B53: 丁聪 | C53: 柏树墩村1、2、5、6、7、8、9、10组 | D53: 420.00 | E53: 8,400.00
A54: 50 | B54: 帅艳 | C54: 双墩村3组 | D54: 1.00 | E54: 20.00
A55: 51 | B55: 张厉军 | C55: 双墩村3组 | D55: 0.60 | E55: 12.00
A56: 52 | B56: 季新 | C56: 双墩村5组 | D56: 2.50 | E56: 50.00
A57: 53 | B57: 张建 | C57: 双墩村5组 | D57: 1.20 | E57: 24.00
A58: 54 | B58: 杨勇军 | C58: 双墩村5组 | D58: 1.30 | E58: 26.00
A59: 55 | B59: 张海 | C59: 双墩村19组 | D59: 4.00 | E59: 80.00
A60: 56 | B60: 邱训礼 | C60: 双墩村3组 | D60: 1.50 | E60: 30.00
A61: 57 | B61: 邱训杰 | C61: 双墩村12组 | D61: 3.50 | E61: 70.00
A62: 58 | B62: 镇小龙 | C62: 双墩村27组 | D62: 1.50 | E62: 30.00
A63: 59 | B63: 何建 | C63: 双墩村28组 | D63: 4.00 | E63: 80.00
A64: 60 | B64: 顾宏明 | C64: 双墩村36组 | D64: 8.00 | E64: 160.00
A65: 61 | B65: 丁杨进 | C65: 双墩村36组 | D65: 3.00 | E65: 60.00
A66: 62 | B66: 曹汉林 | C66: 双墩村37组 | D66: 1.50 | E66: 30.00
A67: 63 | B67: 季有华 | C67: 双墩村37组 | D67: 1.00 | E67: 20.00
A68: 64 | B68: 周锦荣 | C68: 双墩村37组 | D68: 1.50 | E68: 30.00
A69: 65 | B69: 顾庆生 | C69: 双墩村37组 | D69: 0.80 | E69: 16.00
A70: 66 | B70: 顾如德 | C70: 双墩村37组 | D70: 2.50 | E70: =D70*20 -> 50.00
A71: 67 | B71: 丁如马 | C71: 双墩村39组 | D71: 2.00 | E71: 40.00
A72: 68 | B72: 徐建 | C72: 双墩村39组 | D72: 1.00 | E72: 20.00
A73: 69 | B73: 周其贤 | C73: 双墩村39组 | D73: 2.50 | E73: 50.00
A74: 70 | B74: 杨晓祥 | C74: 双墩村39组 | D74: 1.00 | E74: 20.00
A75: 71 | B75: 刘少明 | C75: 双墩村39组 | D75: 1.00 | E75: 20.00
A76: 72 | B76: 昝亚华 | C76: 双墩村39组 | D76: 1.50 | E76: 30.00
A77: 73 | B77: 李德华 | C77: 双墩村8组 | D77: 20.00 | E77: 400.00
A78: 74 | B78: 杨学云 | C78: 双墩村10组 | D78: 466.00 | E78: 9,320.00
A79: 75 | B79: 葛蒋华 | C79: 双墩村36组 | D79: 487.00 | E79: 9,740.00
A80: 76 | B80: 奚卫星 | C80: 双墩村32组 | D80: 632.48 | E80: 12,649.60
A81: 77 | B81: 丁聪 | C81: 双墩村35组 | D81: 162.50 | E81: 3,250.00
A82: 78 | B82: 陶志林 | C82: 十总居28组 | D82: 3.00 | E82: 60.00
A83: 79 | B83: 张晓南 | C83: 十总居22,23,27组 | D83: 107.84 | E83: 2,156.80
A84: 80 | B84: 蒋军 | C84: 十总居18,20,29组 | D84: 172.03 | E84: 3,440.60
A85: 81 | B85: 陈建兵 | C85: 十总居27,28组 | D85: 180.00 | E85: 3,600.00
A86: 82 | B86: 周春付 | C86: 十总居2,3,4,5,6,7,8组 | D86: 560.00 | E86: 11,200.00
A87: 83 | B87: 张吉平 | C87: 新雁村5组 | D87: 2.30 | E87: 46.00
A88: 84 | B88: 顾益林 | C88: 新雁村5组 | D88: 0.50 | E88: 10.00
A89: 85 | B89: 周仁平 | C89: 新雁村6组 | D89: 3.00 | E89: 60.00
A90: 86 | B90: 高汉萍 | C90: 新雁村7组 | D90: 0.80 | E90: 16.00
A91: 87 | B91: 陈建 | C91: 新雁村7组 | D91: 3.00 | E91: 60.00
A92: 88 | B92: 徐军 | C92: 新雁村7组 | D92: 3.00 | E92: 60.00
A93: 89 | B93: 王晓东 | C93: 新雁村10组 | D93: 1.00 | E93: 20.00
A94: 90 | B94: 丁峰 | C94: 新雁村12组 | D94: 1.00 | E94: 20.00
A95: 91 | B95: 陈娟 | C95: 新雁村12组 | D95: 1.00 | E95: 20.00
A96: 92 | B96: 丁建平 | C96: 新雁村12组 | D96: 1.00 | E96: 20.00
A97: 93 | B97: 丁美萍 | C97: 新雁村12组 | D97: 1.00 | E97: 20.00
A98: 94 | B98: 丁容 | C98: 新雁村12组 | D98: 1.00 | E98: 20.00
A99: 95 | B99: 姜德先 | C99: 新雁村13组 | D99: 4.00 | E99: 80.00
A100: 96 | B100: 刘志平 | C100: 新雁村13组 | D100: 1.00 | E100: 20.00
A101: 97 | B101: 杜广遂 | C101: 新雁村13组 | D101: 1.50 | E101: 30.00
A102: 98 | B102: 朱锦明 | C102: 新雁村15组 | D102: 17.00 | E102: 340.00
A103: 99 | B103: 王建玉 | C103: 新雁村15组 | D103: 3.00 | E103: 60.00
A104: 100 | B104: 丁彦盛 | C104: 新雁村17组 | D104: 1.50 | E104: 30.00
A105: 101 | B105: 丁彦华 | C105: 新雁村17组 | D105: 2.50 | E105: 50.00
A106: 102 | B106: 严汉涛 | C106: 新雁村17组 | D106: 5.00 | E106: 100.00
A107: 103 | B107: 葛兹军 | C107: 新雁村19组 | D107: 4.00 | E107: 80.00
A108: 104 | B108: 朱国华 | C108: 新雁村23组 | D108: 1.50 | E108: 30.00
A109: 105 | B109: 葛玉军 | C109: 新雁村24组 | D109: 1.50 | E109: 30.00
A110: 106 | B110: 朱志林 | C110: 新雁村24组 | D110: 1.50 | E110: 30.00
A111: 107 | B111: 魏平 | C111: 新雁村25组 | D111: 1.20 | E111: 24.00
A112: 108 | B112: 陈怀进 | C112: 新雁村26组 | D112: 3.00 | E112: 60.00
A113: 109 | B113: 刘建峰 | C113: 新雁村26组 | D113: 2.50 | E113: 50.00
A114: 110 | B114: 曹进汉 | C114: 新雁村29组 | D114: 6.00 | E114: 120.00
A115: 111 | B115: 潘海均 | C115: 新雁村29组 | D115: 7.00 | E115: 140.00
A116: 112 | B116: 田德明 | C116: 新雁村29组 | D116: 4.00 | E116: 80.00
A117: 113 | B117: 潘建峰 | C117: 新雁村29组 | D117: 3.00 | E117: 60.00
A118: 114 | B118: 潘建龙 | C118: 新雁村29组 | D118: 1.20 | E118: 24.00
A119: 115 | B119: 葛海明 | C119: 新雁村29组 | D119: 1.00 | E119: 20.00
A120: 116 | B120: 单怀明 | C120: 新雁村30组 | D120: 7.00 | E120: 140.00
A121: 117 | B121: 葛国 | C121: 新雁村32组 | D121: 3.00 | E121: 60.00
A122: 118 | B122: 李军 | C122: 新雁村32组 | D122: 2.00 | E122: 40.00
A123: 119 | B123: 顾玉党 | C123: 新雁村32组 | D123: 1.00 | E123: 20.00
A124: 120 | B124: 梁云 | C124: 新雁村33组 | D124: 2.00 | E124: 40.00
A125: 121 | B125: 梁志仁 | C125: 新雁村33组 | D125: 3.00 | E125: 60.00
A126: 122 | B126: 葛来玉 | C126: 新雁村33组 | D126: 3.50 | E126: 70.00
A127: 123 | B127: 葛书军 | C127: 新雁村33组 | D127: 7.00 | E127: 140.00
A128: 124 | B128: 徐祥建 | C128: 新雁村33组 | D128: 4.00 | E128: 80.00
A129: 125 | B129: 金瑞芳 | C129: 新雁村34组 | D129: 1.00 | E129: 20.00
A130: 126 | B130: 顾玉华 | C130: 新雁村34组 | D130: 4.00 | E130: 80.00
A131: 127 | B131: 何建国 | C131: 新雁村36组 | D131: 1.00 | E131: 20.00
A132: 128 | B132: 葛金和 | C132: 新雁村37组 | D132: 9.00 | E132: 180.00
A133: 129 | B133: 葛建 | C133: 新雁村37组 | D133: 2.00 | E133: 40.00
A134: 130 | B134: 钱怡 | C134: 新雁村37组 | D134: 1.50 | E134: =D134*20 -> 30.00
A135: 131 | B135: 盛建明 | C135: 新雁村38组 | D135: 11.00 | E135: 220.00
A136: 132 | B136: 黄维清 | C136: 新雁村38组 | D136: 1.00 | E136: 20.00
A137: 133 | B137: 曹明 | C137: 新雁村38组 | D137: 1.00 | E137: 20.00
A138: 134 | B138: 葛金于 | C138: 新雁村39组 | D138: 1.00 | E138: 20.00
A139: 135 | B139: 葛建新 | C139: 新雁村39组 | D139: 4.00 | E139: 80.00
A140: 136 | B140: 葛鑫华 | C140: 新雁村39组 | D140: 1.00 | E140: 20.00
A141: 137 | B141: 李宏宽 | C141: 新雁村39组 | D141: 1.00 | E141: 20.00
A142: 138 | B142: 刘炳新 | C142: 新雁村40组 | D142: 2.00 | E142: 40.00
A143: 139 | B143: 刘炳华 | C143: 新雁村40组 | D143: 2.00 | E143: 40.00
A144: 140 | B144: 葛菥桃 | C144: 新雁村42组 | D144: 2.00 | E144: 40.00
A145: 141 | B145: 严建华 | C145: 新雁村42组 | D145: 48.90 | E145: 978.00
A146: 142 | B146: 严勇军 | C146: 新雁村42组 | D146: 4.00 | E146: 80.00
A147: 143 | B147: 葛文新 | C147: 新雁村43组 | D147: 1.00 | E147: 20.00
A148: 144 | B148: 葛春华 | C148: 新雁村43组 | D148: 1.50 | E148: 30.00
A149: 145 | B149: 李军 | C149: 新雁村45组 | D149: 1.00 | E149: 20.00
A150: 146 | B150: 徐长林 | C150: 新雁村1组 | D150: 18.00 | E150: 360.00
A151: 147 | B151: 王高高 | C151: 新雁村11组 | D151: 10.00 | E151: 200.00
A152: 148 | B152: 张美娟 | C152: 新雁村10组 | D152: 52.40 | E152: 1,048.00
A153: 149 | B153: 何建琪 | C153: 新雁村36组 | D153: 292.50 | E153: 5,850.00
A154: 150 | B154: 朱葛梁 | C154: 新雁村38组 | D154: 297.30 | E154: 5,946.00
A155: 151 | B155: 张自虎 | C155: 新雁村1、3、16、17组 | D155: 287.00 | E155: 5,740.00
A156: 152 | B156: 吴建 | C156: 新雁村10-13；18、19组 | D156: 767.50 | E156: 15,350.00
A157: 153 | B157: 葛育圣 | C157: 新雁村13、15、16、19、20、33组 | D157: 190.00 | E157: 3,800.00
A158: 154 | B158: 丁聪 | C158: 新雁村22-26组 | D158: 1113.80 | E158: 22,276.00
A159: 155 | B159: 丁胜华 | C159: 骑岸居一组 | D159: 2.00 | E159: 40.00
A160: 156 | B160: 季芹娟 | C160: 骑岸居一组 | D160: 2.50 | E160: 50.00
A161: 157 | B161: 徐炳良 | C161: 骑岸居一组 | D161: 1.50 | E161: 30.00
A162: 158 | B162: 徐炳林 | C162: 骑岸居一组 | D162: 4.00 | E162: 80.00
A163: 159 | B163: 于林成 | C163: 骑岸居一组 | D163: 4.00 | E163: 80.00
A164: 160 | B164: 丁汉清 | C164: 骑岸居一组 | D164: 1.10 | E164: 22.00
A165: 161 | B165: 丁顺兰 | C165: 骑岸居二组 | D165: 4.00 | E165: 80.00
A166: 162 | B166: 徐岗 | C166: 骑岸居二组 | D166: 5.00 | E166: 100.00
A167: 163 | B167: 王德明 | C167: 骑岸居二组 | D167: 0.80 | E167: 16.00
A168: 164 | B168: 徐忠华 | C168: 骑岸居二组 | D168: 0.70 | E168: 14.00
A169: 165 | B169: 耿国熙 | C169: 骑岸居二组 | D169: 0.80 | E169: 16.00
A170: 166 | B170: 张立新 | C170: 骑岸居九组 | D170: 1.00 | E170: 20.00
A171: 167 | B171: 倪柏林 | C171: 骑岸居十组 | D171: 3.00 | E171: 60.00
A172: 168 | B172: 王海国 | C172: 骑岸居十组 | D172: 2.50 | E172: 50.00
A173: 169 | B173: 张汉进 | C173: 骑岸居十一组 | D173: 2.00 | E173: 40.00
A174: 170 | B174: 张汉明 | C174: 骑岸居十一组 | D174: 2.00 | E174: 40.00
A175: 171 | B175: 徐姓杨 | C175: 骑岸居十三组 | D175: 3.00 | E175: 60.00
A176: 172 | B176: 徐建华 | C176: 骑岸居二十组 | D176: 3.00 | E176: 60.00
A177: 173 | B177: 盛秀芳 | C177: 骑岸社区居委会五组 | D177: 456.85 | E177: 9,137.00
A178: 174 | B178: 张志晶 | C178: 骑岸社区居委会十四组 | D178: 467.35 | E178: 9,347.00
A179: 175 | B179: 姜鸿飞 | C179: 张沙村30组 | D179: 1.00 | E179: 20.00
A180: 176 | B180: 李海荣 | C180: 张沙村委会二十八组 | D180: 3.00 | E180: 60.00
A181: 177 | B181: 施美如 | C181: 张沙村委会二十八组 | D181: 1.20 | E181: 24.00
A182: 178 | B182: 俞银芝 | C182: 张沙村委会二十八组 | D182: 1.40 | E182: 28.00
A183: 179 | B183: 俞志明 | C183: 张沙村委会二十八组 | D183: 2.00 | E183: 40.00
A184: 180 | B184: 张国祥 | C184: 张沙村委会二十八组 | D184: 1.00 | E184: 20.00
A185: 181 | B185: 张日成 | C185: 张沙村委会二十八组 | D185: 1.00 | E185: 20.00
A186: 182 | B186: 张日光 | C186: 张沙村委会二十八组 | D186: 1.50 | E186: 30.00
A187: 183 | B187: 张日泉 | C187: 张沙村委会二十八组 | D187: 1.50 | E187: 30.00
A188: 184 | B188: 管雪林 | C188: 张沙村委会二十九组 | D188: 2.00 | E188: 40.00
A189: 185 | B189: 何井泉 | C189: 张沙村委会二十九组 | D189: 1.50 | E189: 30.00
A190: 186 | B190: 季求成 | C190: 张沙村委会二十九组 | D190: 2.00 | E190: 40.00
A191: 187 | B191: 季求华 | C191: 张沙村委会二十九组 | D191: 3.60 | E191: 72.00
A192: 188 | B192: 陆善明 | C192: 张沙村委会二十九组 | D192: 2.00 | E192: 40.00
A193: 189 | B193: 张日林 | C193: 张沙村委会二十九组 | D193: 2.00 | E193: 40.00
A194: 190 | B194: 张斌 | C194: 张沙村委会二十六组 | D194: 3.00 | E194: 60.00
A195: 191 | B195: 张均 | C195: 张沙村委会二十六组 | D195: 3.50 | E195: 70.00
A196: 192 | B196: 朱会才 | C196: 张沙村委会二十六组 | D196: 1.00 | E196: 20.00
A197: 193 | B197: 任力荣 | C197: 张沙村委会二十七组 | D197: 1.20 | E197: 24.00
A198: 194 | B198: 王德明 | C198: 张沙村委会二十七组 | D198: 1.20 | E198: =D198*20 -> 24.00
A199: 195 | B199: 吴其连 | C199: 张沙村委会二十七组 | D199: 5.50 | E199: 110.00
A200: 196 | B200: 宣跃华 | C200: 张沙村委会二十七组 | D200: 1.50 | E200: 30.00
... 1893 more rows

Sheet 石港明细
A1: 2025年夏季秸秆机械化还田（含犁耕深翻）作业补助公示明细表
A2: 石港 镇（区、园、街道）
A3: 补助标准：20元/亩
A4: 序号 | B4: 补助对象 | C4: 作业地点（组） | D4: 作业面积（亩） | E4: 补助资金（元）
A5: 1 | B5: 于锦华 | C5: 北渡村委会二组 | D5: 2.60 | E5: =D5*20 -> 52.00
A6: 2 | B6: 苏锡均 | C6: 北渡村委会二组 | D6: 4.00 | E6: =D6*20 -> 80.00
A7: 3 | B7: 于明新 | C7: 北渡村委会二组 | D7: 7.90 | E7: 158.00
A8: 4 | B8: 刘培成 | C8: 北渡村委会三组 | D8: 1.20 | E8: 24.00
A9: 5 | B9: 刘金汉 | C9: 北渡村委会三组 | D9: 3.30 | E9: 66.00
A10: 6 | B10: 张宏均 | C10: 北渡村委会三组 | D10: 3.00 | E10: 60.00
A11: 7 | B11: 张子春 | C11: 北渡村委会三组 | D11: 1.00 | E11: 20.00
A12: 8 | B12: 王建国 | C12: 北渡村委会三组 | D12: 2.40 | E12: 48.00
A13: 9 | B13: 钱保进 | C13: 北渡村委会四组 | D13: 3.50 | E13: 70.00
A14: 10 | B14: 杨忠飞 | C14: 北渡村委会十组 | D14: 2.00 | E14: 40.00
A15: 11 | B15: 施沫湘 | C15: 北渡村委会十组 | D15: 2.50 | E15: 50.00
A16: 12 | B16: 施沫荣 | C16: 北渡村委会十组 | D16: 7.50 | E16: 150.00
A17: 13 | B17: 黄国华 | C17: 北渡村委会十组 | D17: 6.67 | E17: 133.40
A18: 14 | B18: 薛才忠 | C18: 北渡村委会十组 | D18: 7.50 | E18: 150.00
A19: 15 | B19: 薛银杰 | C19: 北渡村委会十组 | D19: 6.50 | E19: 130.00
A20: 16 | B20: 陈金华 | C20: 北渡村委会十组 | D20: 3.00 | E20: 60.00
A21: 17 | B21: 杨光明 | C21: 北渡村委会十二组 | D21: 1.00 | E21: 20.00
A22: 18 | B22: 葛美英 | C22: 北渡村委会十二组 | D22: 1.50 | E22: 30.00
A23: 19 | B23: 季克明 | C23: 北渡村委会十二组 | D23: 1.00 | E23: 20.00
A24: 20 | B24: 季克林 | C24: 北渡村委会十二组 | D24: 4.80 | E24: 96.00
A25: 21 | B25: 葛茂义 | C25: 北渡村委会十二组 | D25: 1.00 | E25: 20.00
A26: 22 | B26: 郭银中 | C26: 北渡村委会十二组 | D26: 0.80 | E26: 16.00
A27: 23 | B27: 苏国均 | C27: 北渡村委会十二组 | D27: 0.80 | E27: 16.00
A28: 24 | B28: 周贵成 | C28: 北渡村委会十二组 | D28: 1.50 | E28: 30.00
A29: 25 | B29: 周贵礼 | C29: 北渡村委会十二组 | D29: 1.00 | E29: 20.00
A30: 26 | B30: 王国明 | C30: 北渡村委会十二组 | D30: 11.00 | E30: 220.00
A31: 27 | B31: 王有才 | C31: 北渡村委会十三组 | D31: 8.00 | E31: 160.00
A32: 28 | B32: 杨忠云 | C32: 北渡村委会十三组 | D32: 4.00 | E32: 80.00
A33: 29 | B33: 鲁淑芳 | C33: 北渡村委会十三组 | D33: 2.00 | E33: 40.00
A34: 30 | B34: 时吉林 | C34: 北渡村委会十三组 | D34: 2.00 | E34: 40.00
A35: 31 | B35: 石新国 | C35: 北渡村委会十三组 | D35: 5.60 | E35: 112.00
A36: 32 | B36: 石新友 | C36: 北渡村委会十三组 | D36: 9.20 | E36: 184.00
A37: 33 | B37: 季昌华 | C37: 北渡村委会十三组 | D37: 0.70 | E37: 14.00
A38: 34 | B38: 蔡晓 | C38: 北渡村委会十三组 | D38: 3.70 | E38: 74.00
A39: 35 | B39: 吴军民 | C39: 北渡村委会十四组 | D39: 3.00 | E39: 60.00
A40: 36 | B40: 江广如 | C40: 北渡村委会十四组 | D40: 2.00 | E40: 40.00
A41: 37 | B41: 杨卫东 | C41: 北渡村委会十四组 | D41: 2.20 | E41: 44.00
A42: 38 | B42: 杨国藩 | C42: 北渡村委会十四组 | D42: 1.00 | E42: 20.00
A43: 39 | B43: 李勇奇 | C43: 北渡村委会十四组 | D43: 2.00 | E43: 40.00
A44: 40 | B44: 尹平英 | C44: 北渡村委会十四组 | D44: 1.00 | E44: 20.00
A45: 41 | B45: 杨国成 | C45: 北渡村委会十四组 | D45: 5.00 | E45: 100.00
A46: 42 | B46: 杨维江 | C46: 北渡村委会十四组 | D46: 1.00 | E46: 20.00
A47: 43 | B47: 季尹昌 | C47: 北渡村委会十四组 | D47: 1.00 | E47: 20.00
A48: 44 | B48: 吴拥军 | C48: 北渡村委会十五组 | D48: 4.10 | E48: 82.00
A49: 45 | B49: 季慰成 | C49: 北渡村委会十五组 | D49: 5.09 | E49: 101.80
A50: 46 | B50: 杨建海 | C50: 北渡村委会十五组 | D50: 3.34 | E50: 66.80
A51: 47 | B51: 杨建山 | C51: 北渡村委会十五组 | D51: 3.79 | E51: 75.80
A52: 48 | B52: 杨建成 | C52: 北渡村委会十五组 | D52: 2.88 | E52: 57.60
A53: 49 | B53: 孙志均 | C53: 北渡村委会十六组 | D53: 4.54 | E53: 90.80
A54: 50 | B54: 孙志海 | C54: 北渡村委会十六组 | D54: 4.37 | E54: 87.40
A55: 51 | B55: 许连昌 | C55: 北渡村委会十六组 | D55: 0.67 | E55: 13.40
A56: 52 | B56: 邱万华 | C56: 北渡村委会十六组 | D56: 0.49 | E56: 9.80
A57: 53 | B57: 葛万才 | C57: 北渡村委会十六组 | D57: 1.71 | E57: 34.20
A58: 54 | B58: 许建国 | C58: 北渡村委会十六组 | D58: 0.27 | E58: 5.40
A59: 55 | B59: 范细美 | C59: 北渡村委会十六组 | D59: 1.00 | E59: 20.00
A60: 56 | B60: 杨宗华 | C60: 北渡村委会十六组 | D60: 1.00 | E60: 20.00
A61: 57 | B61: 孙世荣 | C61: 北渡村委会十六组 | D61: 0.50 | E61: 10.00
A62: 58 | B62: 葛许国 | C62: 北渡村委会十六组 | D62: 0.60 | E62: 12.00
A63: 59 | B63: 葛永龙 | C63: 北渡村委会十六组 | D63: 0.30 | E63: 6.00
A64: 60 | B64: 范建华 | C64: 北渡村委会十六组 | D64: 1.50 | E64: 30.00
A65: 61 | B65: 杨宗成 | C65: 北渡村委会十六组 | D65: 0.25 | E65: 5.00
A66: 62 | B66: 陈金云 | C66: 北渡村委会十六组 | D66: 2.00 | E66: 40.00
A67: 63 | B67: 赵全贞 | C67: 北渡村委会十七组 | D67: 1.00 | E67: 20.00
A68: 64 | B68: 刘德国 | C68: 北渡村委会十七组 | D68: 1.50 | E68: 30.00
A69: 65 | B69: 应建国 | C69: 北渡村委会十七组 | D69: 2.00 | E69: 40.00
A70: 66 | B70: 孙万强 | C70: 北渡村委会十七组 | D70: 1.00 | E70: =D70*20 -> 20.00
A71: 67 | B71: 孙万宝 | C71: 北渡村委会十七组 | D71: 1.50 | E71: 30.00
A72: 68 | B72: 蔡维明 | C72: 北渡村委会十七组 | D72: 1.50 | E72: 30.00
A73: 69 | B73: 王国新 | C73: 北渡村委会十七组 | D73: 1.45 | E73: 29.00
A74: 70 | B74: 孙万明 | C74: 北渡村委会十七组 | D74: 2.20 | E74: 44.00
A75: 71 | B75: 孙志付 | C75: 北渡村委会十七组 | D75: 3.90 | E75: 78.00
A76: 72 | B76: 孙志明 | C76: 北渡村委会十七组 | D76: 1.50 | E76: 30.00
A77: 73 | B77: 刘德芝 | C77: 北渡村委会十七组 | D77: 1.80 | E77: 36.00
A78: 74 | B78: 刘德建 | C78: 北渡村委会十七组 | D78: 1.50 | E78: 30.00
A79: 75 | B79: 刘德军 | C79: 北渡村委会十七组 | D79: 1.50 | E79: 30.00
A80: 76 | B80: 赵德华 | C80: 北渡村委会十七组 | D80: 2.90 | E80: 58.00
A81: 77 | B81: 孙汉灿 | C81: 北渡村委会十七组 | D81: 2.00 | E81: 40.00
A82: 78 | B82: 蔡兰英 | C82: 北渡村委会十七组 | D82: 1.50 | E82: 30.00
A83: 79 | B83: 汤美如 | C83: 北渡村委会十七组 | D83: 1.00 | E83: 20.00
A84: 80 | B84: 时普华 | C84: 北渡村委会十八组 | D84: 2.00 | E84: 40.00
A85: 81 | B85: 张新华 | C85: 北渡村委会十八组 | D85: 2.00 | E85: 40.00
A86: 82 | B86: 孙志银 | C86: 北渡村委会十八组 | D86: 2.00 | E86: 40.00
A87: 83 | B87: 顾新国 | C87: 北渡村委会十八组 | D87: 2.50 | E87: 50.00
A88: 84 | B88: 顾建国 | C88: 北渡村委会十八组 | D88: 3.50 | E88: 70.00
A89: 85 | B89: 沈良 | C89: 北渡村委会十八组 | D89: 2.20 | E89: 44.00
A90: 86 | B90: 时广英 | C90: 北渡村委会十八组 | D90: 1.50 | E90: 30.00
A91: 87 | B91: 张国勤 | C91: 北渡村委会十八组 | D91: 2.50 | E91: 50.00
A92: 88 | B92: 时广余 | C92: 北渡村委会十八组 | D92: 1.20 | E92: 24.00
A93: 89 | B93: 陈建 | C93: 北渡村委会十八组 | D93: 3.00 | E93: 60.00
A94: 90 | B94: 刘金珍 | C94: 北渡村委会十八组 | D94: 0.80 | E94: 16.00
A95: 91 | B95: 时井生 | C95: 北渡村委会十八组 | D95: 0.50 | E95: 10.00
A96: 92 | B96: 顾春林 | C96: 北渡村委会十八组 | D96: 1.20 | E96: 24.00
A97: 93 | B97: 张时军 | C97: 北渡村委会十八组 | D97: 0.50 | E97: 10.00
A98: 94 | B98: 薛宗余 | C98: 北渡村委会十八组 | D98: 2.00 | E98: 40.00
A99: 95 | B99: 顾保国 | C99: 北渡村委会十八组 | D99: 1.80 | E99: 36.00
A100: 96 | B100: 时甫怀 | C100: 北渡村委会十八组 | D100: 1.50 | E100: 30.00
A101: 97 | B101: 陈卫军 | C101: 北渡村委会十八组 | D101: 2.00 | E101: 40.00
A102: 98 | B102: 顾建华 | C102: 北渡村委会十八组 | D102: 1.30 | E102: 26.00
A103: 99 | B103: 孙建华 | C103: 北渡村委会十九组 | D103: 2.31 | E103: 46.20
A104: 100 | B104: 孙建 | C104: 北渡村委会十九组 | D104: 3.97 | E104: 79.40
A105: 101 | B105: 季茂春 | C105: 北渡村委会十九组 | D105: 5.36 | E105: 107.20
A106: 102 | B106: 王云霞 | C106: 北渡村委会十九组 | D106: 1.11 | E106: 22.20
A107: 103 | B107: 陈美云 | C107: 北渡村委会十九组 | D107: 2.94 | E107: 58.80
A108: 104 | B108: 季方国 | C108: 北渡村委会十九组 | D108: 5.57 | E108: 111.40
A109: 105 | B109: 孙志桂 | C109: 北渡村委会十九组 | D109: 4.01 | E109: 80.20
A110: 106 | B110: 陈淑华 | C110: 北渡村委会二十组 | D110: 1.88 | E110: 37.60
A111: 107 | B111: 吴建云 | C111: 北渡村委会二十组 | D111: 4.64 | E111: 92.80
A112: 108 | B112: 孙春岩 | C112: 北渡村委会二十一组 | D112: 2.89 | E112: 57.80
A113: 109 | B113: 时普德 | C113: 北渡村委会二十一组 | D113: 1.54 | E113: 30.80
A114: 110 | B114: 吴吉云 | C114: 北渡村委会二十一组 | D114: 2.39 | E114: 47.80
A115: 111 | B115: 张永林 | C115: 北渡村委会二十一组 | D115: 1.51 | E115: 30.20
A116: 112 | B116: 钱海山 | C116: 北渡村委会二十一组 | D116: 6.52 | E116: 130.40
A117: 113 | B117: 张美芬 | C117: 北渡村委会二十一组 | D117: 2.49 | E117: 49.80
A118: 114 | B118: 王建国 | C118: 北渡村委会二十一组 | D118: 4.20 | E118: 84.00
A119: 115 | B119: 吴宝明 | C119: 北渡村委会二十一组 | D119: 1.00 | E119: 20.00
A120: 116 | B120: 陈怀忠 | C120: 北渡村委会二十一组 | D120: 1.60 | E120: 32.00
A121: 117 | B121: 孙志清 | C121: 北渡村委会二十一组 | D121: 2.07 | E121: 41.40
A122: 118 | B122: 刘金华 | C122: 北渡村委会二十一组 | D122: 4.38 | E122: 87.60
A123: 119 | B123: 钱惠忠 | C123: 北渡村委会二十一组 | D123: 7.70 | E123: 154.00
A124: 120 | B124: 王建才 | C124: 北渡村委会二十一组 | D124: 5.28 | E124: 105.60
A125: 121 | B125: 杨德明 | C125: 北渡村委会二十一组 | D125: 2.00 | E125: 40.00
A126: 122 | B126: 单红娟 | C126: 北渡村委会二十二组 | D126: 1.50 | E126: 30.00
A127: 123 | B127: 韩锦华 | C127: 北渡村委会二十二组 | D127: 5.55 | E127: 111.00
A128: 124 | B128: 刘文学 | C128: 北渡村委会二十二组 | D128: 2.11 | E128: 42.20
A129: 125 | B129: 邢国凡 | C129: 北渡村委会二十二组 | D129: 2.20 | E129: 44.00
A130: 126 | B130: 邢维明 | C130: 北渡村委会二十二组 | D130: 1.20 | E130: 24.00
A131: 127 | B131: 花益飞 | C131: 北渡村委会二十二组 | D131: 6.73 | E131: 134.60
A132: 128 | B132: 杨锦余 | C132: 北渡村委会二十二组 | D132: 7.96 | E132: 159.20
A133: 129 | B133: 杨宗荣 | C133: 北渡村委会二十二组 | D133: 7.86 | E133: 157.20
A134: 130 | B134: 张美芬 | C134: 北渡村委会二十二组 | D134: 1.98 | E134: =D134*20 -> 39.60
A135: 131 | B135: 杨宝山 | C135: 北渡村委会二十二组 | D135: 5.62 | E135: 112.40
A136: 132 | B136: 薛明岗 | C136: 北渡村委会二十二组 | D136: 0.50 | E136: 10.00
A137: 133 | B137: 吴荣培 | C137: 北渡村委会二十三组 | D137: 1.90 | E137: 38.00
A138: 134 | B138: 施志祥 | C138: 北渡村委会二十三组 | D138: 2.20 | E138: 44.00
A139: 135 | B139: 赵春才 | C139: 北渡村委会二十三组 | D139: 1.50 | E139: 30.00
A140: 136 | B140: 张吉平 | C140: 北渡村委会二十三组 | D140: 5.33 | E140: 106.60
A141: 137 | B141: 吴永华 | C141: 北渡村委会二十三组 | D141: 5.05 | E141: 101.00
A142: 138 | B142: 张建华 | C142: 北渡村委会二十三组 | D142: 11.32 | E142: 226.40
A143: 139 | B143: 张宗华 | C143: 北渡村委会二十四组 | D143: 1.00 | E143: 20.00
A144: 140 | B144: 顾志明 | C144: 北渡村委会二十四组 | D144: 1.50 | E144: 30.00
A145: 141 | B145: 季美云 | C145: 北渡村委会二十四组 | D145: 6.00 | E145: 120.00
A146: 142 | B146: 陈永祥 | C146: 北渡村委会二十五组 | D146: 6.00 | E146: 120.00
A147: 143 | B147: 丁子彬 | C147: 北渡村委会二十五组 | D147: 1.80 | E147: 36.00
A148: 144 | B148: 丁子祥 | C148: 北渡村委会二十五组 | D148: 6.00 | E148: 120.00
A149: 145 | B149: 陈永才 | C149: 北渡村委会二十五组 | D149: 5.30 | E149: 106.00
A150: 146 | B150: 郭银川 | C150: 北渡村委会二十五组 | D150: 2.50 | E150: 50.00
A151: 147 | B151: 刘学云 | C151: 北渡村委会二十五组 | D151: 2.00 | E151: 40.00
A152: 148 | B152: 王金山 | C152: 北渡村委会二十五组 | D152: 2.50 | E152: 50.00
A153: 149 | B153: 周质霞 | C153: 北渡村委会二十五组 | D153: 2.00 | E153: 40.00
A154: 150 | B154: 秦新澄 | C154: 北渡村委会二十五组 | D154: 2.00 | E154: 40.00
A155: 151 | B155: 鲍国成 | C155: 北渡村委会二十五组 | D155: 6.00 | E155: 120.00
A156: 152 | B156: 王海泉 | C156: 北渡村委会二十五组 | D156: 1.00 | E156: 20.00
A157: 153 | B157: 王金才 | C157: 北渡村委会二十五组 | D157: 1.00 | E157: 20.00
A158: 154 | B158: 杨宗保 | C158: 北渡村委会二十五组 | D158: 3.50 | E158: 70.00
A159: 155 | B159: 季海成 | C159: 北渡村委会二十五组 | D159: 1.00 | E159: 20.00
A160: 156 | B160: 季海军 | C160: 北渡村委会二十五组 | D160: 0.50 | E160: 10.00
A161: 157 | B161: 徐国兵 | C161: 北渡村委会二十五组 | D161: 2.00 | E161: 40.00
A162: 158 | B162: 王克凡 | C162: 北渡村委会二十六组 | D162: 8.00 | E162: 160.00
A163: 159 | B163: 赵荣均 | C163: 北渡村委会二十六组 | D163: 10.00 | E163: 200.00
A164: 160 | B164: 鲍国明 | C164: 北渡村委会二十六组 | D164: 5.00 | E164: 100.00
A165: 161 | B165: 王克栋 | C165: 北渡村委会二十六组 | D165: 7.00 | E165: 140.00
A166: 162 | B166: 王克平 | C166: 北渡村委会二十六组 | D166: 7.00 | E166: 140.00
A167: 163 | B167: 刘为民 | C167: 北渡村委会二十六组 | D167: 6.90 | E167: 138.00
A168: 164 | B168: 曹海 | C168: 北渡村委会二十六组 | D168: 4.28 | E168: 85.60
A169: 165 | B169: 徐德明 | C169: 北渡村委会二十六组 | D169: 1.50 | E169: 30.00
A170: 166 | B170: 张林余 | C170: 北渡村委会二十六组 | D170: 5.00 | E170: 100.00
A171: 167 | B171: 郭卫兵 | C171: 北渡村委会二十六组 | D171: 1.00 | E171: 20.00
A172: 168 | B172: 张恒泉 | C172: 北渡村委会二十六组 | D172: 8.00 | E172: 160.00
A173: 169 | B173: 张林双 | C173: 北渡村委会二十六组 | D173: 4.00 | E173: 80.00
A174: 170 | B174: 王锦坤 | C174: 北渡村委会二十六组 | D174: 2.00 | E174: 40.00
A175: 171 | B175: 鲍岩均 | C175: 北渡村委会二十六组 | D175: 5.00 | E175: 100.00
A176: 172 | B176: 陈佩曹 | C176: 北渡村委会二十六组 | D176: 1.99 | E176: 39.80
A177: 173 | B177: 瞿明贤 | C177: 北渡村委会二十六组 | D177: 3.00 | E177: 60.00
A178: 174 | B178: 曹冬林 | C178: 北渡村委会二十六组 | D178: 4.50 | E178: 90.00
A179: 175 | B179: 张恒才 | C179: 北渡村委会二十六组 | D179: 1.50 | E179: 30.00
A180: 176 | B180: 王立湘 | C180: 北渡村委会二十六组 | D180: 1.00 | E180: 20.00
A181: 177 | B181: 张建均 | C181: 北渡村委会二十六组 | D181: 3.00 | E181: 60.00
A182: 178 | B182: 张生华 | C182: 北渡村委会二十六组 | D182: 4.00 | E182: 80.00
A183: 179 | B183: 白道生 | C183: 北渡村委会二十七组 | D183: 2.00 | E183: 40.00
A184: 180 | B184: 陆宏明 | C184: 北渡村委会二十七组 | D184: 1.80 | E184: 36.00
A185: 181 | B185: 陆宏发 | C185: 北渡村委会二十七组 | D185: 5.00 | E185: 100.00
A186: 182 | B186: 郑仲连 | C186: 北渡村委会二十七组 | D186: 9.85 | E186: 197.00
A187: 183 | B187: 杜云 | C187: 北渡村委会二十八组 | D187: 7.00 | E187: 140.00
A188: 184 | B188: 刘建忠 | C188: 北渡村委会二十九组 | D188: 1.00 | E188: 20.00
A189: 185 | B189: 刘建国 | C189: 北渡村委会二十九组 | D189: 1.50 | E189: 30.00
A190: 186 | B190: 孙卫祖 | C190: 北渡村委会三十组 | D190: 2.10 | E190: 42.00
A191: 187 | B191: 刘云 | C191: 北渡村委会三十一组 | D191: 0.90 | E191: 18.00
A192: 188 | B192: 单志华 | C192: 北渡村委会三十一组 | D192: 4.50 | E192: 90.00
A193: 189 | B193: 周新华 | C193: 北渡村委会三十一组 | D193: 2.50 | E193: 50.00
A194: 190 | B194: 戴志祥 | C194: 北渡村委会三十一组 | D194: 4.30 | E194: 86.00
A195: 191 | B195: 单国华 | C195: 北渡村委会三十一组 | D195: 3.50 | E195: 70.00
A196: 192 | B196: 张达明 | C196: 北渡村委会三十一组 | D196: 0.50 | E196: 10.00
A197: 193 | B197: 蔡林俊 | C197: 北渡村委会三十二组 | D197: 3.50 | E197: 70.00
A198: 194 | B198: 蔡培贤 | C198: 北渡村委会三十二组 | D198: 3.30 | E198: =D198*20 -> 66.00
A199: 195 | B199: 季长其 | C199: 北渡村委会三十三组 | D199: 2.00 | E199: 40.00
A200: 196 | B200: 戴柱保 | C200: 北渡村委会三十三组 | D200: 3.00 | E200: 60.00
... 1590 more rows

Sheet 刘桥明细
A1: 2025年夏季秸秆机械化还田（含犁耕深翻）作业补助公示明细表
A2: 刘桥 镇（区、园、街道）
A3: 补助标准：20元/亩
A4: 序号 | B4: 补助对象 | C4: 作业地点（组） | D4: 作业面积（亩） | E4: 补助资金（元）
A5: 1 | B5: 费广仁 | C5: 刘桥社区23组 | D5: 2.30 | E5: =D5*20 -> 46.00
A6: 2 | B6: 费金建 | C6: 刘桥社区23组 | D6: 2.50 | E6: =D6*20 -> 50.00
A7: 3 | B7: 金明清 | C7: 刘桥社区23组 | D7: 1.50 | E7: 30.00
A8: 4 | B8: 陈爱云 | C8: 刘桥社区23组 | D8: 3.80 | E8: 76.00
A9: 5 | B9: 顾明贤 | C9: 刘桥社区23组 | D9: 1.50 | E9: 30.00
A10: 6 | B10: 金维华 | C10: 刘桥社区23组 | D10: 0.80 | E10: 16.00
A11: 7 | B11: 费子明 | C11: 刘桥社区23组 | D11: 1.80 | E11: 36.00
A12: 8 | B12: 顾明华 | C12: 刘桥社区23组 | D12: 1.30 | E12: 26.00
A13: 9 | B13: 曹志林 | C13: 王东桥11组 | D13: 12.10 | E13: 242.00
A14: 10 | B14: 陈永寿 | C14: 王东桥10组 | D14: 1.20 | E14: 24.00
A15: 11 | B15: 徐竹英 | C15: 王东桥2组 | D15: 1.90 | E15: 38.00
A16: 12 | B16: 费新明 | C16: 王东桥11组 | D16: 1.80 | E16: 36.00
A17: 13 | B17: 周汉林 | C17: 王东桥7组 | D17: 3.00 | E17: 60.00
A18: 14 | B18: 孙友才 | C18: 燕港1组 | D18: 2.00 | E18: 40.00
A19: 15 | B19: 李祖国 | C19: 燕港2组 | D19: 1.00 | E19: 20.00
A20: 16 | B20: 李祖华 | C20: 燕港2组 | D20: 1.00 | E20: 20.00
A21: 17 | B21: 李建兵 | C21: 燕港2组 | D21: 3.00 | E21: 60.00
A22: 18 | B22: 严振国 | C22: 燕港2组 | D22: 2.00 | E22: 40.00
A23: 19 | B23: 陈建新 | C23: 燕港5组 | D23: 3.50 | E23: 70.00
A24: 20 | B24: 李建均 | C24: 燕港6组 | D24: 1.50 | E24: 30.00
A25: 21 | B25: 李拥军 | C25: 燕港6组 | D25: 1.20 | E25: 24.00
A26: 22 | B26: 陈国祥 | C26: 燕港6组 | D26: 1.20 | E26: 24.00
A27: 23 | B27: 张广泉 | C27: 燕港7组 | D27: 3.00 | E27: 60.00
A28: 24 | B28: 朱宝华 | C28: 燕港7组 | D28: 0.70 | E28: 14.00
A29: 25 | B29: 陈海明 | C29: 燕港7组 | D29: 2.50 | E29: 50.00
A30: 26 | B30: 秦明新 | C30: 燕港9组 | D30: 1.00 | E30: 20.00
A31: 27 | B31: 葛泽明 | C31: 燕港12组 | D31: 2.30 | E31: 46.00
A32: 28 | B32: 刘德华 | C32: 燕港12组 | D32: 2.20 | E32: 44.00
A33: 29 | B33: 杨金银 | C33: 燕港12组 | D33: 2.00 | E33: 40.00
A34: 30 | B34: 陈海泉 | C34: 燕港4组 | D34: 3.00 | E34: 60.00
A35: 31 | B35: 陈国圣 | C35: 燕港4组 | D35: 3.50 | E35: 70.00
A36: 32 | B36: 刘德芹 | C36: 燕港4组 | D36: 1.50 | E36: 30.00
A37: 33 | B37: 顾金泉 | C37: 燕港4组 | D37: 1.50 | E37: 30.00
A38: 34 | B38: 宋志成 | C38: 燕港4组 | D38: 0.80 | E38: 16.00
A39: 35 | B39: 曹志杰 | C39: 燕港3组 | D39: 1.50 | E39: 30.00
A40: 36 | B40: 于友芝 | C40: 燕港5组 | D40: 3.50 | E40: 70.00
A41: 37 | B41: 许井泉 | C41: 燕港5组 | D41: 1.00 | E41: 20.00
A42: 38 | B42: 顾锦华 | C42: 燕港5组 | D42: 2.50 | E42: 50.00
A43: 39 | B43: 马德新 | C43: 燕港5组 | D43: 1.00 | E43: 20.00
A44: 40 | B44: 秦德新 | C44: 燕港5组 | D44: 1.80 | E44: 36.00
A45: 41 | B45: 刘德初 | C45: 燕港5组 | D45: 1.50 | E45: 30.00
A46: 42 | B46: 刘志华 | C46: 燕港5组 | D46: 1.00 | E46: 20.00
A47: 43 | B47: 高明华 | C47: 燕港23组 | D47: 1.00 | E47: 20.00
A48: 44 | B48: 高成甫 | C48: 燕港23组 | D48: 0.40 | E48: 8.00
A49: 45 | B49: 顾金标 | C49: 燕港24组 | D49: 2.00 | E49: 40.00
A50: 46 | B50: 刘尧 | C50: 燕港24组 | D50: 3.50 | E50: 70.00
A51: 47 | B51: 刘金华 | C51: 燕港24组 | D51: 2.30 | E51: 46.00
A52: 48 | B52: 刘海山 | C52: 燕港24组 | D52: 2.00 | E52: 40.00
A53: 49 | B53: 陈志华 | C53: 燕港24组 | D53: 1.00 | E53: 20.00
A54: 50 | B54: 陈德华 | C54: 燕港24组 | D54: 1.80 | E54: 36.00
A55: 51 | B55: 吴步洲 | C55: 燕港24组 | D55: 1.30 | E55: 26.00
A56: 52 | B56: 徐汉清 | C56: 燕港24组 | D56: 3.50 | E56: 70.00
A57: 53 | B57: 刘建忠 | C57: 燕港24组 | D57: 1.80 | E57: 36.00
A58: 54 | B58: 陈海林 | C58: 燕港24组 | D58: 2.50 | E58: 50.00
A59: 55 | B59: 张锦平 | C59: 燕港24组 | D59: 1.50 | E59: 30.00
A60: 56 | B60: 王燕 | C60: 燕港24组 | D60: 1.40 | E60: 28.00
A61: 57 | B61: 刘吉云 | C61: 燕港24组 | D61: 0.80 | E61: 16.00
A62: 58 | B62: 严施元 | C62: 燕港14组 | D62: 2.00 | E62: 40.00
A63: 59 | B63: 施德均 | C63: 燕港14组 | D63: 1.00 | E63: 20.00
A64: 60 | B64: 吕佩泉 | C64: 燕港15组 | D64: 6.00 | E64: 120.00
A65: 61 | B65: 刘志华 | C65: 燕港15组 | D65: 1.80 | E65: 36.00
A66: 62 | B66: 刘志林 | C66: 燕港15组 | D66: 3.50 | E66: 70.00
A67: 63 | B67: 高云芳 | C67: 燕港16组 | D67: 2.20 | E67: 44.00
A68: 64 | B68: 费志敏 | C68: 燕港16组 | D68: 0.60 | E68: 12.00
A69: 65 | B69: 金佳明 | C69: 燕港16组 | D69: 1.00 | E69: 20.00
A70: 66 | B70: 高汉清 | C70: 燕港16组 | D70: 0.70 | E70: =D70*20 -> 14.00
A71: 67 | B71: 王有礼 | C71: 燕港17组 | D71: 2.50 | E71: 50.00
A72: 68 | B72: 王泉生 | C72: 燕港17组 | D72: 1.50 | E72: 30.00
A73: 69 | B73: 朱振杰 | C73: 燕港17组 | D73: 1.70 | E73: 34.00
A74: 70 | B74: 杨华 | C74: 燕港18组 | D74: 0.80 | E74: 16.00
A75: 71 | B75: 顾建国 | C75: 燕港18组 | D75: 1.40 | E75: 28.00
A76: 72 | B76: 马同善 | C76: 燕港18组 | D76: 3.20 | E76: 64.00
A77: 73 | B77: 汤仲 | C77: 燕港18组 | D77: 1.00 | E77: 20.00
A78: 74 | B78: 汤忠飞 | C78: 燕港18组 | D78: 1.70 | E78: 34.00
A79: 75 | B79: 戴明 | C79: 燕港18组 | D79: 2.00 | E79: 40.00
A80: 76 | B80: 戴志华 | C80: 燕港18组 | D80: 1.00 | E80: 20.00
A81: 77 | B81: 马德明 | C81: 燕港18组 | D81: 0.70 | E81: 14.00
A82: 78 | B82: 杨锦兴 | C82: 燕港18组 | D82: 1.20 | E82: 24.00
A83: 79 | B83: 马春芳 | C83: 燕港18组 | D83: 2.40 | E83: 48.00
A84: 80 | B84: 马反修 | C84: 燕港18组 | D84: 2.50 | E84: 50.00
A85: 81 | B85: 马万鑫 | C85: 燕港18组 | D85: 2.40 | E85: 48.00
A86: 82 | B86: 马燕 | C86: 燕港18组 | D86: 0.60 | E86: 12.00
A87: 83 | B87: 蔡美英 | C87: 燕港18组 | D87: 1.00 | E87: 20.00
A88: 84 | B88: 葛春明 | C88: 燕港19组 | D88: 0.50 | E88: 10.00
A89: 85 | B89: 刘志华 | C89: 燕港19组 | D89: 1.20 | E89: 24.00
A90: 86 | B90: 葛彤 | C90: 燕港19组 | D90: 1.20 | E90: 24.00
A91: 87 | B91: 刘夕生 | C91: 燕港19组 | D91: 1.00 | E91: 20.00
A92: 88 | B92: 刘志成 | C92: 燕港19组 | D92: 0.50 | E92: 10.00
A93: 89 | B93: 刘树恒 | C93: 燕港19组 | D93: 0.70 | E93: 14.00
A94: 90 | B94: 宋其圣 | C94: 燕港19组 | D94: 0.80 | E94: 16.00
A95: 91 | B95: 戴金标 | C95: 燕港19组 | D95: 1.00 | E95: 20.00
A96: 92 | B96: 刘美娟 | C96: 燕港19组 | D96: 1.40 | E96: 28.00
A97: 93 | B97: 刘国强 | C97: 燕港19组 | D97: 1.20 | E97: 24.00
A98: 94 | B98: 刘志忠 | C98: 燕港19组 | D98: 2.00 | E98: 40.00
A99: 95 | B99: 朱元庆 | C99: 燕港20组 | D99: 1.50 | E99: 30.00
A100: 96 | B100: 周明华 | C100: 燕港20组 | D100: 1.00 | E100: 20.00
A101: 97 | B101: 凌锦云 | C101: 燕港20组 | D101: 1.20 | E101: 24.00
A102: 98 | B102: 姚志成 | C102: 燕港20组 | D102: 1.90 | E102: 38.00
A103: 99 | B103: 杨建平 | C103: 燕港20组 | D103: 1.50 | E103: 30.00
A104: 100 | B104: 张爱芳 | C104: 燕港20组 | D104: 0.40 | E104: 8.00
A105: 101 | B105: 朱葛明 | C105: 燕港20组 | D105: 1.50 | E105: 30.00
A106: 102 | B106: 蒋云珍 | C106: 燕港20组 | D106: 1.50 | E106: 30.00
A107: 103 | B107: 朱振清 | C107: 燕港20组 | D107: 1.00 | E107: 20.00
A108: 104 | B108: 朱辰 | C108: 燕港20组 | D108: 1.50 | E108: 30.00
A109: 105 | B109: 李新华 | C109: 燕港23组 | D109: 0.50 | E109: 10.00
A110: 106 | B110: 葛兵华 | C110: 燕港23组 | D110: 1.50 | E110: 30.00
A111: 107 | B111: 葛建山 | C111: 燕港23组 | D111: 2.00 | E111: 40.00
A112: 108 | B112: 杨振云 | C112: 燕港23组 | D112: 1.50 | E112: 30.00
A113: 109 | B113: 王门芳 | C113: 燕港23组 | D113: 2.00 | E113: 40.00
A114: 110 | B114: 杨振荣 | C114: 燕港23组 | D114: 2.00 | E114: 40.00
A115: 111 | B115: 周德新 | C115: 燕港23组 | D115: 1.50 | E115: 30.00
A116: 112 | B116: 王燥华 | C116: 燕港23组 | D116: 2.50 | E116: 50.00
A117: 113 | B117: 周爱华 | C117: 燕港23组 | D117: 1.50 | E117: 30.00
A118: 114 | B118: 丁美芹 | C118: 燕港24组 | D118: 1.00 | E118: 20.00
A119: 115 | B119: 杨振国 | C119: 燕港23组 | D119: 2.00 | E119: 40.00
A120: 116 | B120: 陈志峰 | C120: 燕港24组 | D120: 1.60 | E120: 32.00
A121: 117 | B121: 陈志荣 | C121: 燕港24组 | D121: 2.00 | E121: 40.00
A122: 118 | B122: 顾卫兵 | C122: 燕港25组 | D122: 1.80 | E122: 36.00
A123: 119 | B123: 范其栋 | C123: 燕港25组 | D123: 0.50 | E123: 10.00
A124: 120 | B124: 徐建新 | C124: 燕港25组 | D124: 0.70 | E124: 14.00
A125: 121 | B125: 赵志林 | C125: 燕港25组 | D125: 1.50 | E125: 30.00
A126: 122 | B126: 朱德才 | C126: 燕港25组 | D126: 2.60 | E126: 52.00
A127: 123 | B127: 朱德华 | C127: 燕港25组 | D127: 0.50 | E127: 10.00
A128: 124 | B128: 张锦文 | C128: 燕港25组 | D128: 3.00 | E128: 60.00
A129: 125 | B129: 徐志华 | C129: 闻桥十二组 | D129: 1.00 | E129: 20.00
A130: 126 | B130: 徐志金 | C130: 闻桥十二组 | D130: 1.00 | E130: 20.00
A131: 127 | B131: 金维云 | C131: 闻桥十二组 | D131: 0.80 | E131: 16.00
A132: 128 | B132: 鲍有生 | C132: 闻桥十二组 | D132: 2.00 | E132: 40.00
A133: 129 | B133: 胡金林 | C133: 闻桥十二组 | D133: 3.00 | E133: 60.00
A134: 130 | B134: 陈广民 | C134: 闻桥十二组 | D134: 2.00 | E134: =D134*20 -> 40.00
A135: 131 | B135: 刘启明 | C135: 闻桥十二组 | D135: 2.00 | E135: 40.00
A136: 132 | B136: 刘树明 | C136: 闻桥十二组 | D136: 1.20 | E136: 24.00
A137: 133 | B137: 丁学成 | C137: 闻桥十二组 | D137: 1.00 | E137: 20.00
A138: 134 | B138: 鲍建均 | C138: 闻桥十二组 | D138: 1.20 | E138: 24.00
A139: 135 | B139: 张有英 | C139: 闻桥十二组 | D139: 0.80 | E139: 16.00
A140: 136 | B140: 金维芝 | C140: 闻桥十三组 | D140: 2.50 | E140: 50.00
A141: 137 | B141: 邓建清 | C141: 闻桥十三组 | D141: 2.80 | E141: 56.00
A142: 138 | B142: 吴振熙 | C142: 王东桥12组，燕港1.2.5.6.7.11.12.14.15.16.17.19.20.21.23.24.25组 | D142: 335.00 | E142: 6,700.00
A143: 139 | B143: 王可山 | C143: 闻桥8.16.17.18组，燕港3.4.5组 | D143: 937.00 | E143: 18,740.00
A144: 140 | B144: 夏晓丰 | C144: 燕港14.15.2.7组，闻桥19.20组 | D144: 714.00 | E144: 14,280.00
A145: 141 | B145: 吴步华 | C145: 燕港24组 | D145: 19.00 | E145: 380.00
A146: 142 | B146: 高国清 | C146: 燕港2.3.5.7.9.10组 | D146: 78.00 | E146: 1,560.00
A147: 143 | B147: 闻建 | C147: 王东桥2.3.5.6.7.8组 | D147: 217.00 | E147: 4,340.00
A148: 144 | B148: 陈汇明 | C148: 王东桥2组 | D148: 26.00 | E148: 520.00
A149: 145 | B149: 张平 | C149: 王东桥9组 | D149: 44.00 | E149: 880.00
A150: 146 | B150: 王彬 | C150: 王东桥1.2.3.4.5组,燕港8.13组 | D150: 219.00 | E150: 4,380.00
A151: 147 | B151: 南通市通州区凤仙粮食种植农地专业合作社 | C151: 闻桥6.10.11组，王东桥9.10组，刘桥社区1.2.3.21.22组 | D151: 250.00 | E151: 5,000.00
A152: 148 | B152: 徐彦 | C152: 慎修一组 | D152: 2.00 | E152: 40.00
A153: 149 | B153: 翟建国 | C153: 慎修二组 | D153: 2.00 | E153: 40.00
A154: 150 | B154: 钱桂英 | C154: 慎修二组 | D154: 1.00 | E154: 20.00
A155: 151 | B155: 高建华 | C155: 慎修三组 | D155: 0.70 | E155: 14.00
A156: 152 | B156: 高美林 | C156: 慎修三组 | D156: 3.20 | E156: 64.00
A157: 153 | B157: 宋吉军 | C157: 慎修三组 | D157: 1.60 | E157: 32.00
A158: 154 | B158: 宋静 | C158: 慎修三组 | D158: 1.01 | E158: 20.20
A159: 155 | B159: 王志圣 | C159: 慎修三组 | D159: 1.00 | E159: 20.00
A160: 156 | B160: 曹玉华 | C160: 慎修四组 | D160: 2.47 | E160: 49.40
A161: 157 | B161: 曹德新 | C161: 慎修五组 | D161: 0.80 | E161: 16.00
A162: 158 | B162: 费建华 | C162: 慎修五组 | D162: 0.50 | E162: 10.00
A163: 159 | B163: 韩建东 | C163: 慎修五组 | D163: 2.10 | E163: 42.00
A164: 160 | B164: 王灿 | C164: 慎修五组 | D164: 3.00 | E164: 60.00
A165: 161 | B165: 王杰 | C165: 慎修五组 | D165: 1.20 | E165: 24.00
A166: 162 | B166: 魏燕芳 | C166: 慎修五组 | D166: 0.50 | E166: 10.00
A167: 163 | B167: 曹德华 | C167: 慎修五组 | D167: 2.24 | E167: 44.80
A168: 164 | B168: 杨建华 | C168: 慎修五组 | D168: 0.90 | E168: 18.00
A169: 165 | B169: 杨建军 | C169: 慎修五组 | D169: 0.90 | E169: 18.00
A170: 166 | B170: 杨拥军 | C170: 慎修五组 | D170: 0.90 | E170: 18.00
A171: 167 | B171: 戴汉林 | C171: 慎修八组 | D171: 1.00 | E171: 20.00
A172: 168 | B172: 高万清 | C172: 慎修八组 | D172: 2.40 | E172: 48.00
A173: 169 | B173: 刘浩均 | C173: 慎修八组 | D173: 2.80 | E173: 56.00
A174: 170 | B174: 刘祖兴 | C174: 慎修八组 | D174: 2.10 | E174: 42.00
A175: 171 | B175: 秦汉林 | C175: 慎修九组 | D175: 3.50 | E175: 70.00
A176: 172 | B176: 王树言 | C176: 慎修九组 | D176: 3.44 | E176: 68.80
A177: 173 | B177: 李汉林 | C177: 慎修十组 | D177: 3.00 | E177: 60.00
A178: 174 | B178: 李金华 | C178: 慎修十组 | D178: 2.00 | E178: 40.00
A179: 175 | B179: 李勇飞 | C179: 慎修十组 | D179: 1.00 | E179: 20.00
A180: 176 | B180: 李勇华 | C180: 慎修十组 | D180: 3.00 | E180: 60.00
A181: 177 | B181: 李勇明 | C181: 慎修十组 | D181: 3.80 | E181: 76.00
A182: 178 | B182: 李枝华 | C182: 慎修十组 | D182: 4.00 | E182: 80.00
A183: 179 | B183: 李志军 | C183: 慎修十组 | D183: 4.74 | E183: 94.80
A184: 180 | B184: 李志清 | C184: 慎修十组 | D184: 1.50 | E184: 30.00
A185: 181 | B185: 王瑞英 | C185: 慎修十组 | D185: 1.50 | E185: 30.00
A186: 182 | B186: 徐建均 | C186: 慎修十组 | D186: 3.00 | E186: 60.00
A187: 183 | B187: 姚红新 | C187: 慎修十组 | D187: 3.00 | E187: 60.00
A188: 184 | B188: 张玉平 | C188: 慎修十组 | D188: 2.10 | E188: 42.00
A189: 185 | B189: 张建华 | C189: 慎修十组 | D189: 0.99 | E189: 19.80
A190: 186 | B190: 许美英 | C190: 慎修十组 | D190: 0.90 | E190: 18.00
A191: 187 | B191: 秦美华 | C191: 慎修十一组 | D191: 1.00 | E191: 20.00
A192: 188 | B192: 杨祥中 | C192: 慎修十一组 | D192: 0.46 | E192: 9.20
A193: 189 | B193: 张栋华 | C193: 慎修十一组 | D193: 1.19 | E193: 23.80
A194: 190 | B194: 张桂生 | C194: 慎修十一组 | D194: 0.73 | E194: 14.60
A195: 191 | B195: 张建华 | C195: 慎修十一组 | D195: 0.99 | E195: 19.80
A196: 192 | B196: 张玲玲 | C196: 慎修十一组 | D196: 1.10 | E196: 22.00
A197: 193 | B197: 张忠华 | C197: 慎修十一组 | D197: 1.20 | E197: 24.00
A198: 194 | B198: 赵红兵 | C198: 慎修十一组 | D198: 0.77 | E198: =D198*20 -> 15.40
A199: 195 | B199: 费忠明 | C199: 慎修十一组 | D199: 2.31 | E199: 46.20
A200: 196 | B200: 朱勇清 | C200: 慎修十一组 | D200: 1.23 | E200: 24.60
... 4449 more rows

Sheet 平潮明细
A1: 2025年夏季秸秆机械化还田（含犁耕深翻）作业补助公示明细表
A2: 平潮 镇（区、园、街道）
A3: 补助标准：20元/亩
A4: 序号 | B4: 补助对象 | C4: 作业地点（组） | D4: 作业面积（亩） | E4: 补助资金（元）
A5: 1 | B5: 江家好 | C5: 老墩村10组 | D5: 721.80 | E5: =D5*20 -> 14,436.00
A6: 2 | B6: 李德民 | C6: 赵坊村 | D6: 58.75 | E6: =D6*20 -> 1,175.00
A7: 3 | B7: 向海艇 | C7: 赵坊村 | D7: 164.70 | E7: 3,294.00
A8: 4 | B8: 王进 | C8: 赵坊村 | D8: 83.00 | E8: 1,660.00
A9: 5 | B9: 戴建军 | C9: 赵坊村 | D9: 93.00 | E9: 1,860.00
A10: 6 | B10: 陈凯 | C10: 赵坊村 | D10: 579.40 | E10: 11,588.00
A11: 7 | B11: 孙志萍 | C11: 赵坊村3组 | D11: 2.50 | E11: 50.00
A12: 8 | B12: 杨锡银 | C12: 赵坊村3组 | D12: 1.50 | E12: 30.00
A13: 9 | B13: 王小玲 | C13: 赵坊村3组 | D13: 0.50 | E13: 10.00
A14: 10 | B14: 袁中良 | C14: 赵坊村6组 | D14: 1.20 | E14: 24.00
A15: 11 | B15: 陈如英 | C15: 赵坊村6组 | D15: 0.70 | E15: 14.00
A16: 12 | B16: 黄志祥 | C16: 赵坊村6组 | D16: 1.40 | E16: 28.00
A17: 13 | B17: 黄志光 | C17: 赵坊村6组 | D17: 1.00 | E17: 20.00
A18: 14 | B18: 黄志章 | C18: 赵坊村6组 | D18: 1.40 | E18: 28.00
A19: 15 | B19: 陈洪兵 | C19: 赵坊村6组 | D19: 1.70 | E19: 34.00
A20: 16 | B20: 袁汉阳 | C20: 赵坊村6组 | D20: 1.20 | E20: 24.00
A21: 17 | B21: 袁桂清 | C21: 赵坊村6组 | D21: 2.20 | E21: 44.00
A22: 18 | B22: 袁桂贤 | C22: 赵坊村6组 | D22: 2.40 | E22: 48.00
A23: 19 | B23: 韩继美 | C23: 赵坊村6组 | D23: 1.40 | E23: 28.00
A24: 20 | B24: 陈洪武 | C24: 赵坊村6组 | D24: 0.50 | E24: 10.00
A25: 21 | B25: 袁桂川 | C25: 赵坊村6组 | D25: 1.50 | E25: 30.00
A26: 22 | B26: 袁万金 | C26: 赵坊村6组 | D26: 0.80 | E26: 16.00
A27: 23 | B27: 袁伟 | C27: 赵坊村6组 | D27: 1.00 | E27: 20.00
A28: 24 | B28: 袁万荣 | C28: 赵坊村6组 | D28: 0.60 | E28: 12.00
A29: 25 | B29: 朱美娟 | C29: 赵坊村6组 | D29: 1.40 | E29: 28.00
A30: 26 | B30: 袁桂进 | C30: 赵坊村6组 | D30: 1.20 | E30: 24.00
A31: 27 | B31: 陈桂华 | C31: 赵坊村6组 | D31: 1.20 | E31: 24.00
A32: 28 | B32: 耿兴坤 | C32: 赵坊村12组 | D32: 1.50 | E32: 30.00
A33: 29 | B33: 王铎 | C33: 赵坊村12组 | D33: 1.00 | E33: 20.00
A34: 30 | B34: 庄丽生 | C34: 赵坊村12组 | D34: 1.00 | E34: 20.00
A35: 31 | B35: 王秀清 | C35: 赵坊村12组 | D35: 1.50 | E35: 30.00
A36: 32 | B36: 庄益民 | C36: 赵坊村12组 | D36: 1.00 | E36: 20.00
A37: 33 | B37: 朱孙东 | C37: 赵坊村15组 | D37: 0.80 | E37: 16.00
A38: 34 | B38: 杨德云 | C38: 赵坊村15组 | D38: 0.40 | E38: 8.00
A39: 35 | B39: 施连凤 | C39: 赵坊村22组 | D39: 1.00 | E39: 20.00
A40: 36 | B40: 马瑞平 | C40: 赵坊村22组 | D40: 2.00 | E40: 40.00
A41: 37 | B41: 高文英 | C41: 赵坊村22组 | D41: 0.40 | E41: 8.00
A42: 38 | B42: 朱文清 | C42: 赵坊村26组 | D42: 0.70 | E42: 14.00
A43: 39 | B43: 戴松华 | C43: 赵坊村31组 | D43: 1.40 | E43: 28.00
A44: 40 | B44: 戴济华 | C44: 赵坊村31组 | D44: 0.90 | E44: 18.00
A45: 41 | B45: 曹清秋 | C45: 赵坊村31组 | D45: 0.60 | E45: 12.00
A46: 42 | B46: 马盘珍 | C46: 赵坊村31组 | D46: 0.50 | E46: 10.00
A47: 43 | B47: 陈国志 | C47: 赵坊村31组 | D47: 1.00 | E47: 20.00
A48: 44 | B48: 陈淑娟 | C48: 赵坊村31组 | D48: 0.70 | E48: 14.00
A49: 45 | B49: 陈荣明 | C49: 赵坊村31组 | D49: 0.50 | E49: 10.00
A50: 46 | B50: 曹振国 | C50: 赵坊村31组 | D50: 0.80 | E50: 16.00
A51: 47 | B51: 戴建军 | C51: 赵坊村31组 | D51: 1.30 | E51: 26.00
A52: 48 | B52: 戴志勇 | C52: 赵坊村31组 | D52: 1.20 | E52: 24.00
A53: 49 | B53: 陈荣建 | C53: 赵坊村31组 | D53: 1.60 | E53: 32.00
A54: 50 | B54: 陈荣高 | C54: 赵坊村31组 | D54: 0.90 | E54: 18.00
A55: 51 | B55: 刘秀英 | C55: 赵坊村31组 | D55: 0.10 | E55: 2.00
A56: 52 | B56: 江家保 | C56: 平西村15、16、17 | D56: 70.00 | E56: 1,400.00
A57: 53 | B57: 王 进 | C57: 平西村47、48、49 | D57: 172.00 | E57: 3,440.00
A58: 54 | B58: 章长万 | C58: 平西村18、33.34.35、46、47 | D58: 237.88 | E58: 4,757.60
A59: 55 | B59: 夏必进 | C59: 平西村5、26、27、28、29、30、31、32 | D59: 293.56 | E59: 5,871.20
A60: 56 | B60: 蒋建平 | C60: 三官殿村16、18、19、21组 | D60: 134.80 | E60: 2,696.00
A61: 57 | B61: 翟大俊 | C61: 三官殿村6组 | D61: 50.54 | E61: 1,010.80
A62: 58 | B62: 李彩侠 | C62: 三官殿村3、4、11、13、16、17组 | D62: 192.90 | E62: 3,858.00
A63: 59 | B63: 姚德华 | C63: 团圆村委会一组 | D63: 0.18 | E63: 3.60
A64: 60 | B64: 姚锦标 | C64: 团圆村委会一组 | D64: 0.50 | E64: 10.00
A65: 61 | B65: 顾连英 | C65: 团圆村委会三组 | D65: 0.50 | E65: 10.00
A66: 62 | B66: 张志华 | C66: 团圆村委会三组 | D66: 1.00 | E66: 20.00
A67: 63 | B67: 马传济 | C67: 团圆村委会四组 | D67: 2.50 | E67: 50.00
A68: 64 | B68: 吴国林 | C68: 团圆村委会七组 | D68: 0.80 | E68: 16.00
A69: 65 | B69: 崔汉平 | C69: 团圆村委会二十组 | D69: 1.48 | E69: 29.60
A70: 66 | B70: 翟大俊 | C70: 团圆村8-9组 | D70: 100.00 | E70: =D70*20 -> 2,000.00
A71: 67 | B71: 夏名财 | C71: 团圆村1-7组 | D71: 360.39 | E71: 7,207.80
A72: 68 | B72: 章长万 | C72: 团圆村11-14/18/20组 | D72: 261.09 | E72: 5,221.80
A73: 69 | B73: 夏必进 | C73: 团圆村2/10/15/16/17组 | D73: 258.57 | E73: 5,171.40
A74: 70 | B74: 陈竹兰 | C74: 湾子头村委会十六组 | D74: 3.50 | E74: 70.00
A75: 71 | B75: 陈建华 | C75: 湾子头村委会十六组 | D75: 1.70 | E75: 34.00
A76: 72 | B76: 陈国清 | C76: 湾子头村委会十六组 | D76: 1.50 | E76: 30.00
A77: 73 | B77: 陈友新 | C77: 湾子头村委会十六组 | D77: 2.00 | E77: 40.00
A78: 74 | B78: 陈国华 | C78: 湾子头村委会十六组 | D78: 3.00 | E78: 60.00
A79: 75 | B79: 陈山华 | C79: 湾子头村委会十六组 | D79: 1.00 | E79: 20.00
A80: 76 | B80: 陈永强 | C80: 湾子头村委会十六组 | D80: 2.50 | E80: 50.00
A81: 77 | B81: 陈国栋 | C81: 湾子头村委会十六组 | D81: 2.50 | E81: 50.00
A82: 78 | B82: 陈国均 | C82: 湾子头村委会十六组 | D82: 1.70 | E82: 34.00
A83: 79 | B83: 沙淑芳 | C83: 湾子头村委会十六组 | D83: 1.50 | E83: 30.00
A84: 80 | B84: 陈鸭勤 | C84: 湾子头村委会十六组 | D84: 3.00 | E84: 60.00
A85: 81 | B85: 钱德忠 | C85: 湾子头村委会十六组 | D85: 2.50 | E85: 50.00
A86: 82 | B86: 李益山 | C86: 湾子头村委会十六组 | D86: 2.50 | E86: 50.00
A87: 83 | B87: 李炳生 | C87: 湾子头村委会十六组 | D87: 1.50 | E87: 30.00
A88: 84 | B88: 张玉林 | C88: 湾子头村委会十六组 | D88: 1.50 | E88: 30.00
A89: 85 | B89: 李淑珍 | C89: 湾子头村委会十六组 | D89: 2.50 | E89: 50.00
A90: 86 | B90: 陈一芬 | C90: 湾子头村委会十六组 | D90: 1.20 | E90: 24.00
A91: 87 | B91: 陈国基 | C91: 湾子头村委会十六组 | D91: 2.00 | E91: 40.00
A92: 88 | B92: 陈国新 | C92: 湾子头村委会十六组 | D92: 2.50 | E92: 50.00
A93: 89 | B93: 钱用世 | C93: 湾子头村委会十六组 | D93: 2.50 | E93: 50.00
A94: 90 | B94: 董朝阳 | C94: 湾子头村委会十六组 | D94: 2.20 | E94: 44.00
A95: 91 | B95: 李小华 | C95: 湾子头村委会十六组 | D95: 2.00 | E95: 40.00
A96: 92 | B96: 李自才 | C96: 湾子头村10组、26组、29组、30组、31组、32组 | D96: 220.48 | E96: 4,409.60
A97: 93 | B97: 章长万 | C97: 湾子头村3-5组、7-9组、16-17组、21-25组、27组、28组、34-36组、42-43组 | D97: 792.14 | E97: 15,842.80
A98: 94 | B98: 张汉林 | C98: 花坝村村委会一组 | D98: 0.50 | E98: 10.00
A99: 95 | B99: 张佑 | C99: 花坝村村委会一组 | D99: 2.50 | E99: 50.00
A100: 96 | B100: 张宝泉 | C100: 花坝村村委会一组 | D100: 0.50 | E100: 10.00
A101: 97 | B101: 张继光 | C101: 花坝村村委会一组 | D101: 0.45 | E101: 9.00
A102: 98 | B102: 赵兰英 | C102: 花坝村村委会一组 | D102: 0.70 | E102: 14.00
A103: 99 | B103: 张素琴 | C103: 花坝村村委会一组 | D103: 0.50 | E103: 10.00
A104: 100 | B104: 吴汉志 | C104: 花坝村村委会一组 | D104: 0.70 | E104: 14.00
A105: 101 | B105: 吴继成 | C105: 花坝村村委会一组 | D105: 0.70 | E105: 14.00
A106: 102 | B106: 曹志芬 | C106: 花坝村村委会一组 | D106: 0.70 | E106: 14.00
A107: 103 | B107: 王金山 | C107: 花坝村村委会一组 | D107: 0.80 | E107: 16.00
A108: 104 | B108: 吴遂华 | C108: 花坝村村委会一组 | D108: 0.50 | E108: 10.00
A109: 105 | B109: 吴遂明 | C109: 花坝村村委会一组 | D109: 0.50 | E109: 10.00
A110: 106 | B110: 张志华 | C110: 花坝村村委会一组 | D110: 0.50 | E110: 10.00
A111: 107 | B111: 张国华 | C111: 花坝村村委会一组 | D111: 0.40 | E111: 8.00
A112: 108 | B112: 吴建华 | C112: 花坝村村委会二组 | D112: 1.00 | E112: 20.00
A113: 109 | B113: 马家飞 | C113: 花坝村村委会二组 | D113: 1.50 | E113: 30.00
A114: 110 | B114: 马家礼 | C114: 花坝村村委会二组 | D114: 1.50 | E114: 30.00
A115: 111 | B115: 钱国新 | C115: 花坝村村委会二组 | D115: 1.00 | E115: 20.00
A116: 112 | B116: 钱国成 | C116: 花坝村村委会二组 | D116: 1.00 | E116: 20.00
A117: 113 | B117: 钱美英 | C117: 花坝村村委会二组 | D117: 2.00 | E117: 40.00
A118: 114 | B118: 钱锦托 | C118: 花坝村村委会二组 | D118: 1.50 | E118: 30.00
A119: 115 | B119: 金珠英 | C119: 花坝村村委会二组 | D119: 1.00 | E119: 20.00
A120: 116 | B120: 马忠泉 | C120: 花坝村村委会二组 | D120: 1.00 | E120: 20.00
A121: 117 | B121: 钱昆如 | C121: 花坝村村委会二组 | D121: 0.90 | E121: 18.00
A122: 118 | B122: 钱周德 | C122: 花坝村村委会二组 | D122: 1.00 | E122: 20.00
A123: 119 | B123: 马志祥 | C123: 花坝村村委会三组 | D123: 0.80 | E123: 16.00
A124: 120 | B124: 马军峰 | C124: 花坝村村委会三组 | D124: 1.00 | E124: 20.00
A125: 121 | B125: 郭兰芬 | C125: 花坝村村委会三组 | D125: 0.50 | E125: 10.00
A126: 122 | B126: 马传伍 | C126: 花坝村村委会三组 | D126: 2.00 | E126: 40.00
A127: 123 | B127: 马忠华 | C127: 花坝村村委会三组 | D127: 0.80 | E127: 16.00
A128: 124 | B128: 刘志华 | C128: 花坝村村委会三组 | D128: 0.80 | E128: 16.00
A129: 125 | B129: 马新明 | C129: 花坝村村委会三组 | D129: 1.90 | E129: 38.00
A130: 126 | B130: 马红旗 | C130: 花坝村村委会三组 | D130: 1.20 | E130: 24.00
A131: 127 | B131: 马汉林 | C131: 花坝村村委会三组 | D131: 2.40 | E131: 48.00
A132: 128 | B132: 马汉彬 | C132: 花坝村村委会三组 | D132: 1.80 | E132: 36.00
A133: 129 | B133: 刘爱萍 | C133: 花坝村村委会三组 | D133: 2.00 | E133: 40.00
A134: 130 | B134: 马国华 | C134: 花坝村村委会三组 | D134: 1.00 | E134: =D134*20 -> 20.00
A135: 131 | B135: 沙元熙 | C135: 花坝村村委会三组 | D135: 3.40 | E135: 68.00
A136: 132 | B136: 马忠华 | C136: 花坝村村委会三组 | D136: 1.00 | E136: 20.00
A137: 133 | B137: 马忠泉 | C137: 花坝村村委会三组 | D137: 1.10 | E137: 22.00
A138: 134 | B138: 蒋新明 | C138: 花坝村村委会三组 | D138: 1.90 | E138: 38.00
A139: 135 | B139: 马德明 | C139: 花坝村村委会三组 | D139: 2.00 | E139: 40.00
A140: 136 | B140: 周建云 | C140: 花坝村村委会三组 | D140: 1.40 | E140: 28.00
A141: 137 | B141: 马德华 | C141: 花坝村村委会四组 | D141: 1.00 | E141: 20.00
A142: 138 | B142: 蒋勇华 | C142: 花坝村村委会四组 | D142: 0.50 | E142: 10.00
A143: 139 | B143: 陶国华 | C143: 花坝村村委会四组 | D143: 1.20 | E143: 24.00
A144: 140 | B144: 陶汉明 | C144: 花坝村村委会四组 | D144: 1.70 | E144: 34.00
A145: 141 | B145: 冒来泉 | C145: 花坝村村委会四组 | D145: 1.00 | E145: 20.00
A146: 142 | B146: 黄国炎 | C146: 花坝村村委会七组 | D146: 2.00 | E146: 40.00
A147: 143 | B147: 袁振国 | C147: 花坝村村委会七组 | D147: 1.50 | E147: 30.00
A148: 144 | B148: 朱美华 | C148: 花坝村村委会七组 | D148: 2.20 | E148: 44.00
A149: 145 | B149: 王国富 | C149: 花坝村村委会七组 | D149: 1.00 | E149: 20.00
A150: 146 | B150: 陆志兵 | C150: 花坝村村委会七组 | D150: 1.70 | E150: 34.00
A151: 147 | B151: 陈泉英 | C151: 花坝村村委会七组 | D151: 2.50 | E151: 50.00
A152: 148 | B152: 王振华 | C152: 花坝村村委会七组 | D152: 1.20 | E152: 24.00
A153: 149 | B153: 王国强 | C153: 花坝村村委会七组 | D153: 4.00 | E153: 80.00
A154: 150 | B154: 周锦成 | C154: 花坝村村委会七组 | D154: 2.00 | E154: 40.00
A155: 151 | B155: 金万富 | C155: 花坝村村委会七组 | D155: 1.50 | E155: 30.00
A156: 152 | B156: 沙承东 | C156: 花坝村村委会七组 | D156: 3.50 | E156: 70.00
A157: 153 | B157: 周义华 | C157: 花坝村村委会七组 | D157: 2.00 | E157: 40.00
A158: 154 | B158: 王国英 | C158: 花坝村村委会七组 | D158: 1.20 | E158: 24.00
A159: 155 | B159: 袁德志 | C159: 花坝村村委会七组 | D159: 1.50 | E159: 30.00
A160: 156 | B160: 王国林 | C160: 花坝村村委会七组 | D160: 1.50 | E160: 30.00
A161: 157 | B161: 陈锦惠 | C161: 花坝村村委会七组 | D161: 1.50 | E161: 30.00
A162: 158 | B162: 陆志江 | C162: 花坝村村委会七组 | D162: 2.00 | E162: 40.00
A163: 159 | B163: 陆志华 | C163: 花坝村村委会七组 | D163: 2.00 | E163: 40.00
A164: 160 | B164: 陆志明 | C164: 花坝村村委会七组 | D164: 1.00 | E164: 20.00
A165: 161 | B165: 陆志新 | C165: 花坝村村委会七组 | D165: 1.50 | E165: 30.00
A166: 162 | B166: 尤德林 | C166: 花坝村村委会七组 | D166: 1.20 | E166: 24.00
A167: 163 | B167: 马传珍 | C167: 花坝村村委会七组 | D167: 2.00 | E167: 40.00
A168: 164 | B168: 周锦龙 | C168: 花坝村村委会七组 | D168: 1.00 | E168: 20.00
A169: 165 | B169: 姚晓东 | C169: 花坝村村委会十一组 | D169: 1.50 | E169: 30.00
A170: 166 | B170: 王国炎 | C170: 花坝村村委会十一组 | D170: 1.00 | E170: 20.00
A171: 167 | B171: 王锡桂 | C171: 花坝村村委会十一组 | D171: 2.30 | E171: 46.00
A172: 168 | B172: 郭德炎 | C172: 花坝村村委会十一组 | D172: 0.90 | E172: 18.00
A173: 169 | B173: 王国云 | C173: 花坝村村委会十一组 | D173: 2.20 | E173: 44.00
A174: 170 | B174: 沙荷英 | C174: 花坝村村委会十二组 | D174: 1.50 | E174: 30.00
A175: 171 | B175: 张建华 | C175: 花坝村村委会十二组 | D175: 0.90 | E175: 18.00
A176: 172 | B176: 陆新林 | C176: 花坝村村委会十二组 | D176: 2.00 | E176: 40.00
A177: 173 | B177: 陆永新 | C177: 花坝村村委会十二组 | D177: 1.50 | E177: 30.00
A178: 174 | B178: 陆红军 | C178: 花坝村村委会十二组 | D178: 1.20 | E178: 24.00
A179: 175 | B179: 陆志军 | C179: 花坝村村委会十二组 | D179: 1.20 | E179: 24.00
A180: 176 | B180: 陆维进 | C180: 花坝村村委会十二组 | D180: 2.00 | E180: 40.00
A181: 177 | B181: 陆维志 | C181: 花坝村村委会十二组 | D181: 1.50 | E181: 30.00
A182: 178 | B182: 王昆荣 | C182: 花坝村村委会十二组 | D182: 2.50 | E182: 50.00
A183: 179 | B183: 王金坤 | C183: 花坝村村委会十三组 | D183: 0.60 | E183: 12.00
A184: 180 | B184: 王淑英 | C184: 花坝村村委会十三组 | D184: 0.60 | E184: 12.00
A185: 181 | B185: 陆维华 | C185: 花坝村村委会十三组 | D185: 1.80 | E185: 36.00
A186: 182 | B186: 陆书逢 | C186: 花坝村村委会十三组 | D186: 1.00 | E186: 20.00
A187: 183 | B187: 陆维均 | C187: 花坝村村委会十三组 | D187: 0.60 | E187: 12.00
A188: 184 | B188: 陈荣泉 | C188: 花坝村村委会十三组 | D188: 3.00 | E188: 60.00
A189: 185 | B189: 陆栋华 | C189: 花坝村村委会十三组 | D189: 0.50 | E189: 10.00
A190: 186 | B190: 沙承基 | C190: 花坝村村委会十三组 | D190: 1.80 | E190: 36.00
A191: 187 | B191: 顾建华 | C191: 花坝村村委会十四组 | D191: 0.50 | E191: 10.00
A192: 188 | B192: 顾乃荣 | C192: 花坝村村委会十四组 | D192: 1.50 | E192: 30.00
A193: 189 | B193: 钱淑英 | C193: 花坝村村委会十四组 | D193: 0.50 | E193: 10.00
A194: 190 | B194: 马汉林 | C194: 花坝村村委会十四组 | D194: 0.40 | E194: 8.00
A195: 191 | B195: 张志芬 | C195: 花坝村村委会十四组 | D195: 0.60 | E195: 12.00
A196: 192 | B196: 钱进 | C196: 花坝村村委会十四组 | D196: 1.50 | E196: 30.00
A197: 193 | B197: 孙宝坤 | C197: 花坝村村委会十四组 | D197: 1.00 | E197: 20.00
A198: 194 | B198: 孙宝华 | C198: 花坝村村委会十四组 | D198: 0.70 | E198: =D198*20 -> 14.00
A199: 195 | B199: 陆志银 | C199: 花坝村村委会十四组 | D199: 1.50 | E199: 30.00
A200: 196 | B200: 王桂华 | C200: 花坝村村委会十四组 | D200: 0.60 | E200: 12.00
... 1882 more rows

Sheet 五接明细
A1: 2025年夏季秸秆机械化还田（含犁耕深翻）作业补助公示明细表
A2: 五接 镇（区、园、街道）
A3: 补助标准：20元/亩
A4: 序号 | B4: 补助对象 | C4: 作业地点（组） | D4: 作业面积（亩） | E4: 补助资金（元）
A5: 1 | B5: 鲍家照 | C5: 桃园村5-12、21、22组 | D5: 933.23 | E5: =D5*20 -> 18,664.60
A6: 2 | B6: 通州区五接镇凯凯粮食种植家庭农场 | C6: 桃园村1-5组，29，31，33-35组 | D6: 706.95 | E6: =D6*20 -> 14,139.00
A7: 3 | B7: 王海军 | C7: 桃园村19、41、42组 | D7: 131.21 | E7: 2,624.20
A8: 4 | B8: 通州区五接镇超群粮食种植家庭农场 | C8: 桃园村42、44组 | D8: 165.69 | E8: 3,313.80
A9: 5 | B9: 南通顺捷农业服务专业合作社 | C9: 桃园村13-17、28-33、37-39、40-43、45组 | D9: 1620.36 | E9: 32,407.20
A10: 6 | B10: 南通市百川粮食专业合作社 | C10: 桃园村20、25-27组 | D10: 505.91 | E10: 10,118.20
A11: 7 | B11: 夏名财 | C11: 桃园村23、24组 | D11: 76.40 | E11: 1,528.00
A12: 8 | B12: 杨建明 | C12: 桃园村43组 | D12: 2.00 | E12: 40.00
A13: 9 | B13: 陈红霞 | C13: 桃园村36组 | D13: 1.00 | E13: 20.00
A14: 10 | B14: 陈金文 | C14: 桃园村36组 | D14: 1.00 | E14: 20.00
A15: 11 | B15: 陈金峰 | C15: 桃园村36组 | D15: 1.00 | E15: 20.00
A16: 12 | B16: 钱栋华 | C16: 桃园村36组 | D16: 0.65 | E16: 13.00
A17: 13 | B17: 朱达山 | C17: 张大圩19组 | D17: 1.00 | E17: 20.00
A18: 14 | B18: 孙建国 | C18: 张大圩19组 | D18: 1.00 | E18: 20.00
A19: 15 | B19: 王安菊 | C19: 张大圩19组 | D19: 0.70 | E19: 14.00
A20: 16 | B20: 赵荣清 | C20: 张大圩21组 | D20: 4.00 | E20: 80.00
A21: 17 | B21: 沈宝明 | C21: 张大圩23组 | D21: 1.60 | E21: 32.00
A22: 18 | B22: 夏明益 | C22: 张大圩23组 | D22: 0.60 | E22: 12.00
A23: 19 | B23: 陈文祥 | C23: 张大圩24组 | D23: 1.60 | E23: 32.00
A24: 20 | B24: 陈建国 | C24: 张大圩24组 | D24: 1.00 | E24: 20.00
A25: 21 | B25: 吴海燕 | C25: 张大圩24组 | D25: 1.00 | E25: 20.00
A26: 22 | B26: 戴国新 | C26: 张大圩27组 | D26: 0.80 | E26: 16.00
A27: 23 | B27: 李百芬 | C27: 张大圩27组 | D27: 0.50 | E27: 10.00
A28: 24 | B28: 钱汉林 | C28: 张大圩29组 | D28: 0.60 | E28: 12.00
A29: 25 | B29: 周锦泉 | C29: 张大圩28组 | D29: 1.00 | E29: 20.00
A30: 26 | B30: 李友 | C30: 张大圩20.21组 | D30: 226.52 | E30: 4,530.40
A31: 27 | B31: 李才山 | C31: 张大圩22.23.25.27-30组 | D31: 496.77 | E31: 9,935.40
A32: 28 | B32: 张瞻远 | C32: 张大圩16.17.25.26组 | D32: 248.63 | E32: 4,972.60
A33: 29 | B33: 陈清华 | C33: 张大圩23.24组 | D33: 122.48 | E33: 2,449.60
A34: 30 | B34: 夏名财 | C34: 张大圩3.6.15组 | D34: 158.30 | E34: 3,166.00
A35: 31 | B35: 马翔翔 | C35: 张大圩10.11.14.22组 | D35: 192.84 | E35: 3,856.80
A36: 32 | B36: 罗园喜 | C36: 张大圩4.7.17.18.21.16.31组 | D36: 290.72 | E36: 5,814.40
A37: 33 | B37: 南通市通州区五接镇志富草制品专业合作社 | C37: 张大圩2.9.10.19组 | D37: 210.63 | E37: 4,212.60
A38: 34 | B38: 通州区五沙家庭农场 | C38: 张大圩1.2.4.5.7.8.17.19组 | D38: 529.45 | E38: =D38*20 -> 10,589.00
A39: 35 | B39: 沈同玉 | C39: 袁三圩4-8、11、19 组 | D39: 667.53 | E39: 13,350.60
A40: 36 | B40: 王鹏 | C40: 袁三圩17-25组 | D40: 1054.61 | E40: 21,092.20
A41: 37 | B41: 孙和平 | C41: 袁三圩5、6、8-10、12-16组 | D41: 759.96 | E41: 15,199.20
A42: 38 | B42: 南通市百川粮食专业合作社 | C42: 袁三圩1-3组 | D42: 270.56 | E42: 5,411.20
A43: 39 | B43: 王建忠 | C43: 复成村5组 | D43: 1.50 | E43: 30.00
A44: 40 | B44: 姜辛成 | C44: 复成村6组 | D44: 1.00 | E44: 20.00
A45: 41 | B45: 李国纯 | C45: 复成村6组 | D45: 2.00 | E45: 40.00
A46: 42 | B46: 王建 | C46: 复成村6组 | D46: 1.00 | E46: 20.00
A47: 43 | B47: 宋小毛 | C47: 复成村7组 | D47: 1.20 | E47: 24.00
A48: 44 | B48: 徐永忠 | C48: 复成村7组 | D48: 2.60 | E48: 52.00
A49: 45 | B49: 项翠兰 | C49: 复成村7组 | D49: 1.20 | E49: 24.00
A50: 46 | B50: 唐新民 | C50: 复成村7组 | D50: 1.00 | E50: 20.00
A51: 47 | B51: 赵振忠 | C51: 复成村7组 | D51: 3.20 | E51: 64.00
A52: 48 | B52: 孙美华 | C52: 复成村7组 | D52: 2.50 | E52: 50.00
A53: 49 | B53: 林国华 | C53: 复成村7组 | D53: 2.10 | E53: 42.00
A54: 50 | B54: 陈建军 | C54: 复成村7组 | D54: 1.56 | E54: 31.20
A55: 51 | B55: 徐永国 | C55: 复成村7组 | D55: 2.80 | E55: 56.00
A56: 52 | B56: 陈福来 | C56: 复成村7组 | D56: 1.30 | E56: 26.00
A57: 53 | B57: 徐永荣 | C57: 复成村7组 | D57: 1.00 | E57: 20.00
A58: 54 | B58: 朱志明 | C58: 复成村11组 | D58: 2.19 | E58: 43.80
A59: 55 | B59: 朱新林 | C59: 复成村11组 | D59: 1.68 | E59: 33.60
A60: 56 | B60: 朱国林 | C60: 复成村11组 | D60: 1.68 | E60: 33.60
A61: 57 | B61: 朱桂华 | C61: 复成村11组 | D61: 1.28 | E61: 25.60
A62: 58 | B62: 李玉秀 | C62: 复成村11组 | D62: 2.62 | E62: 52.40
A63: 59 | B63: 朱元兵 | C63: 复成村11组 | D63: 2.75 | E63: 55.00
A64: 60 | B64: 谢国华 | C64: 复成村11组 | D64: 0.90 | E64: 18.00
A65: 61 | B65: 张素珍 | C65: 复成村18组 | D65: 2.50 | E65: 50.00
A66: 62 | B66: 李娟 | C66: 复成村5组 | D66: 10.09 | E66: 201.80
A67: 63 | B67: 孙学立 | C67: 复成村14、15、21、22、25、27、31、32、46、47、48组 | D67: 352.18 | E67: 7,043.60
A68: 64 | B68: 王小勇 | C68: 复成村1、2、20、25-27、32、36、40-43、45-50组 | D68: 950.00 | E68: 19,000.00
A69: 65 | B69: 王进 | C69: 复成村1-8、11-13、15-24、28-31、33-41、44、45、49组 | D69: 2462.56 | E69: 49,251.20
A70: 66 | B70: 朱林 | C70: 复成村14、7-11、43组 | D70: 219.22 | E70: 4,384.40
A71: 67 | B71: 孙学立 | C71: 李港村12、14、26、27、29、30、31、32、33、34组 | D71: 1324.92 | E71: 26,498.40
A72: 68 | B72: 王海军 | C72: 李港村2、3、4、5、6、7、8、10、11、15、16、17、25、34组 | D72: 589.36 | E72: 11,787.20
A73: 69 | B73: 江家好 | C73: 老木厂12组 | D73: 30.15 | E73: 603.00
A74: 70 | B74: 梁锦友 | C74: 老木厂1-4组 | D74: 264.72 | E74: 5,294.40
A75: 71 | B75: 徐丹丹 | C75: 老木厂25组 | D75: 124.00 | E75: 2,480.00
A76: 72 | B76: 罗园喜 | C76: 老木厂12组 | D76: 66.00 | E76: 1,320.00
A77: 73 | B77: 南通顺捷农业服务专业合作社 | C77: 老木厂1、4-11、13-24 | D77: 1123.73 | E77: 22,474.60
A78: 74 | B78: 左付中 | C78: 老木厂9、11、14-20 | D78: 688.89 | E78: 13,777.80
A79: 75 | B79: 罗园喜 | C79: 天后宫2、9、29、35、37 | D79: 228.79 | E79: 4,575.80
A80: 76 | B80: 王勇 | C80: 天后宫20、21、22、28、35、37、39、43 | D80: 194.48 | E80: 3,889.60
A81: 77 | B81: 孙和平 | C81: 天后宫4、5、6、10、13、14、15、16、17、20、21、22、41 | D81: 801.90 | E81: 16,038.00
A84: 合计 | D84: =SUM(D5:D83) -> 18862.35 | E84: =SUM(E5:E83) -> 377,247.00

Sheet 兴仁明细
A1: 2025年夏季秸秆机械化还田（含犁耕深翻）作业补助公示明细表
A2: 兴仁 镇（区、园、街道）
A3: 补助标准：20元/亩
A4: 序号 | B4: 补助对象 | C4: 作业地点（组） | D4: 作业面积（亩） | E4: 补助资金（元）
A5: 1 | B5: 朱学新 | C5: 横港社区1组 | D5: 0.80 | E5: =D5*20 -> 16.00
A6: 2 | B6: 葛德华 | C6: 横港社区1组 | D6: 1.80 | E6: =D6*20 -> 36.00
A7: 3 | B7: 葛震明 | C7: 横港社区1组 | D7: 2.40 | E7: 48.00
A8: 4 | B8: 丁锦泉 | C8: 横港社区1组 | D8: 2.00 | E8: 40.00
A9: 5 | B9: 成明德 | C9: 横港社区1组 | D9: 1.50 | E9: 30.00
A10: 6 | B10: 陈步洲 | C10: 横港社区1组 | D10: 1.50 | E10: 30.00
A11: 7 | B11: 朱学军 | C11: 横港社区1组 | D11: 1.50 | E11: 30.00
A12: 8 | B12: 朱学华 | C12: 横港社区1组 | D12: 0.80 | E12: 16.00
A13: 9 | B13: 任德华 | C13: 横港社区1组 | D13: 1.00 | E13: 20.00
A14: 10 | B14: 陆建兵 | C14: 横港社区1组 | D14: 1.20 | E14: 24.00
A15: 11 | B15: 李长余 | C15: 横港社区2组 | D15: 0.80 | E15: 16.00
A16: 12 | B16: 吴建华 | C16: 横港社区2组 | D16: 2.10 | E16: 42.00
A17: 13 | B17: 胡正 | C17: 横港社区2组 | D17: 2.00 | E17: 40.00
A18: 14 | B18: 谢云泉 | C18: 横港社区2组 | D18: 1.40 | E18: 28.00
A19: 15 | B19: 任茂汉 | C19: 横港社区2组 | D19: 2.60 | E19: 52.00
A20: 16 | B20: 陈和英 | C20: 横港社区3组 | D20: 2.00 | E20: 40.00
A21: 17 | B21: 白益峰 | C21: 横港社区3组 | D21: 1.00 | E21: 20.00
A22: 18 | B22: 吴茂达 | C22: 横港社区4组 | D22: 1.80 | E22: 36.00
A23: 19 | B23: 周金成 | C23: 横港社区4组 | D23: 0.80 | E23: 16.00
A24: 20 | B24: 周仕生 | C24: 横港社区4组 | D24: 1.20 | E24: 24.00
A25: 21 | B25: 吴智 | C25: 横港社区4组 | D25: 0.60 | E25: 12.00
A26: 22 | B26: 王跃 | C26: 横港社区6组 | D26: 1.20 | E26: 24.00
A27: 23 | B27: 陈建林 | C27: 横港社区6组 | D27: 1.80 | E27: 36.00
A28: 24 | B28: 候金友 | C28: 横港社区6组 | D28: 2.50 | E28: 50.00
A29: 25 | B29: 陈建明 | C29: 横港社区6组 | D29: 1.20 | E29: 24.00
A30: 26 | B30: 王国建 | C30: 横港社区6组 | D30: 0.50 | E30: 10.00
A31: 27 | B31: 周建华 | C31: 横港社区6组 | D31: 1.00 | E31: 20.00
A32: 28 | B32: 马永芝 | C32: 横港社区7组 | D32: 3.00 | E32: 60.00
A33: 29 | B33: 陈美兰 | C33: 横港社区7组 | D33: 1.50 | E33: 30.00
A34: 30 | B34: 李兵 | C34: 横港社区7组 | D34: 1.00 | E34: 20.00
A35: 31 | B35: 金炳生 | C35: 横港社区7组 | D35: 1.00 | E35: 20.00
A36: 32 | B36: 金爱明 | C36: 横港社区7组 | D36: 1.00 | E36: 20.00
A37: 33 | B37: 陈葛基 | C37: 横港社区7组 | D37: 3.50 | E37: 70.00
A38: 34 | B38: 魏建明 | C38: 横港社区7组 | D38: 1.00 | E38: 20.00
A39: 35 | B39: 戴文春 | C39: 横港社区7组 | D39: 2.00 | E39: 40.00
A40: 36 | B40: 周红梅 | C40: 横港社区7组 | D40: 2.00 | E40: 40.00
A41: 37 | B41: 吴学义 | C41: 横港社区7组 | D41: 1.00 | E41: 20.00
A42: 38 | B42: 周菊香 | C42: 横港社区7组 | D42: 1.60 | E42: 32.00
A43: 39 | B43: 陈号林 | C43: 横港社区8组 | D43: 0.80 | E43: 16.00
A44: 40 | B44: 王美英 | C44: 横港社区8组 | D44: 1.20 | E44: 24.00
A45: 41 | B45: 王建明 | C45: 横港社区8组 | D45: 1.10 | E45: 22.00
A46: 42 | B46: 陈松林 | C46: 横港社区8组 | D46: 2.70 | E46: 54.00
A47: 43 | B47: 陈往林 | C47: 横港社区8组 | D47: 0.60 | E47: 12.00
A48: 44 | B48: 羌井华 | C48: 横港社区8组 | D48: 1.00 | E48: 20.00
A49: 45 | B49: 羌建林 | C49: 横港社区8组 | D49: 1.20 | E49: 24.00
A50: 46 | B50: 王建 | C50: 横港社区8组 | D50: 0.80 | E50: 16.00
A51: 47 | B51: 金汉林 | C51: 横港社区9组 | D51: 0.70 | E51: 14.00
A52: 48 | B52: 金汉灿 | C52: 横港社区9组 | D52: 0.70 | E52: 14.00
A53: 49 | B53: 金建明 | C53: 横港社区9组 | D53: 0.80 | E53: 16.00
A54: 50 | B54: 吴燕 | C54: 横港社区9组 | D54: 2.00 | E54: 40.00
A55: 51 | B55: 沈美英 | C55: 横港社区15组 | D55: 0.60 | E55: 12.00
A56: 52 | B56: 羌吉芹 | C56: 横港社区15组 | D56: 1.00 | E56: 20.00
A57: 53 | B57: 羌联保 | C57: 横港社区15组 | D57: 2.20 | E57: 44.00
A58: 54 | B58: 范维新 | C58: 横港社区15组 | D58: 2.20 | E58: 44.00
A59: 55 | B59: 羌桂芝 | C59: 横港社区15组 | D59: 1.00 | E59: 20.00
A60: 56 | B60: 羌联堂 | C60: 横港社区15组 | D60: 1.60 | E60: 32.00
A61: 57 | B61: 顾文均 | C61: 横港社区15组 | D61: 2.50 | E61: 50.00
A62: 58 | B62: 张振华 | C62: 横港社区15组 | D62: 1.00 | E62: 20.00
A63: 59 | B63: 周建均 | C63: 横港社区15组 | D63: 2.20 | E63: 44.00
A64: 60 | B64: 王琴 | C64: 横港社区15组 | D64: 1.00 | E64: 20.00
A65: 61 | B65: 徐平英 | C65: 横港社区15组 | D65: 0.60 | E65: 12.00
A66: 62 | B66: 范维其 | C66: 横港社区15组 | D66: 1.80 | E66: 36.00
A67: 63 | B67: 周建成 | C67: 横港社区15组 | D67: 1.30 | E67: 26.00
A68: 64 | B68: 曹德均 | C68: 横港社区15组 | D68: 0.80 | E68: 16.00
A69: 65 | B69: 何素平 | C69: 横港社区15组 | D69: 1.00 | E69: 20.00
A70: 66 | B70: 马夕新 | C70: 横港社区15组 | D70: 1.30 | E70: =D70*20 -> 26.00
A71: 67 | B71: 孙国强 | C71: 横港社区15组 | D71: 0.50 | E71: 10.00
A72: 68 | B72: 曹建兴 | C72: 横港社区17组 | D72: 2.00 | E72: 40.00
A73: 69 | B73: 陈菊芳 | C73: 横港社区17组 | D73: 2.00 | E73: 40.00
A74: 70 | B74: 张炎清 | C74: 横港社区17组 | D74: 2.40 | E74: 48.00
A75: 71 | B75: 曹娟 | C75: 横港社区17组 | D75: 3.00 | E75: 60.00
A76: 72 | B76: 曹煜然 | C76: 横港社区17组 | D76: 2.00 | E76: 40.00
A77: 73 | B77: 王汉春 | C77: 横港社区18组 | D77: 1.30 | E77: 26.00
A78: 74 | B78: 王学东 | C78: 横港社区18组 | D78: 1.20 | E78: 24.00
A79: 75 | B79: 韩秀才 | C79: 横港社区18组 | D79: 1.00 | E79: 20.00
A80: 76 | B80: 许德新 | C80: 横港社区18组 | D80: 1.10 | E80: 22.00
A81: 77 | B81: 包进 | C81: 横港社区18组 | D81: 1.20 | E81: 24.00
A82: 78 | B82: 王应仁 | C82: 横港社区18组 | D82: 1.60 | E82: 32.00
A83: 79 | B83: 张志成 | C83: 横港社区18组 | D83: 4.50 | E83: 90.00
A84: 80 | B84: 冯如英 | C84: 横港社区18组 | D84: 1.40 | E84: 28.00
A85: 81 | B85: 徐美云 | C85: 横港社区18组 | D85: 1.00 | E85: 20.00
A86: 82 | B86: 曹步忠 | C86: 横港社区20组 | D86: 2.50 | E86: 50.00
A87: 83 | B87: 曹步锋 | C87: 横港社区20组 | D87: 1.50 | E87: 30.00
A88: 84 | B88: 郭金成 | C88: 横港社区22组 | D88: 1.70 | E88: 34.00
A89: 85 | B89: 徐金建 | C89: 横港社区22组 | D89: 2.50 | E89: 50.00
A90: 86 | B90: 陈汉美 | C90: 横港社区23组 | D90: 1.50 | E90: 30.00
A91: 87 | B91: 刘国忠 | C91: 横港社区23组 | D91: 0.50 | E91: 10.00
A92: 88 | B92: 刘国新 | C92: 横港社区23组 | D92: 2.80 | E92: 56.00
A93: 89 | B93: 吴树芝 | C93: 横港社区23组 | D93: 1.80 | E93: 36.00
A94: 90 | B94: 蒋进华 | C94: 横港社区23组 | D94: 1.70 | E94: 34.00
A95: 91 | B95: 羌明均 | C95: 横港社区23组 | D95: 2.00 | E95: 40.00
A96: 92 | B96: 蒋进清 | C96: 横港社区23组 | D96: 1.50 | E96: 30.00
A97: 93 | B97: 陆志忠 | C97: 横港社区23组 | D97: 2.00 | E97: 40.00
A98: 94 | B98: 凌志余 | C98: 横港社区23组 | D98: 2.80 | E98: 56.00
A99: 95 | B99: 羌如英 | C99: 横港社区23组 | D99: 2.00 | E99: 40.00
A100: 96 | B100: 蒋金余 | C100: 横港社区23组 | D100: 2.80 | E100: 56.00
A101: 97 | B101: 羌汉泰 | C101: 横港社区23组 | D101: 1.50 | E101: 30.00
A102: 98 | B102: 刘海飞 | C102: 横港社区23组 | D102: 1.00 | E102: 20.00
A103: 99 | B103: 申志贤 | C103: 横港社区23组 | D103: 2.00 | E103: 40.00
A104: 100 | B104: 申志华 | C104: 横港社区23组 | D104: 1.00 | E104: 20.00
A105: 101 | B105: 刘国堂 | C105: 横港社区23组 | D105: 1.00 | E105: 20.00
A106: 102 | B106: 刘建成 | C106: 横港社区23组 | D106: 1.50 | E106: 30.00
A107: 103 | B107: 刘国松 | C107: 横港社区23组 | D107: 3.00 | E107: 60.00
A108: 104 | B108: 羌桂云 | C108: 横港社区23组 | D108: 2.00 | E108: 40.00
A109: 105 | B109: 孙金华 | C109: 横港社区23组 | D109: 2.50 | E109: 50.00
A110: 106 | B110: 顾晓华 | C110: 横港社区23组 | D110: 2.00 | E110: 40.00
A111: 107 | B111: 朱淑平 | C111: 横港社区23组 | D111: 1.50 | E111: 30.00
A112: 108 | B112: 刘进龙 | C112: 横港社区23组 | D112: 2.50 | E112: 50.00
A113: 109 | B113: 申志明 | C113: 横港社区23组 | D113: 1.80 | E113: 36.00
A114: 110 | B114: 顾荣华 | C114: 横港社区23组 | D114: 3.20 | E114: 64.00
A115: 111 | B115: 孙金乾 | C115: 横港社区23组 | D115: 2.50 | E115: 50.00
A116: 112 | B116: 孙金成 | C116: 横港社区23组 | D116: 2.50 | E116: 50.00
A117: 113 | B117: 孙金祥 | C117: 横港社区23组 | D117: 2.80 | E117: 56.00
A118: 114 | B118: 欧浦云 | C118: 横港社区23组 | D118: 2.60 | E118: 52.00
A119: 115 | B119: 羌志成 | C119: 横港社区23组 | D119: 1.00 | E119: 20.00
A120: 116 | B120: 刘建峰 | C120: 横港社区23组 | D120: 1.70 | E120: 34.00
A121: 117 | B121: 顾春华 | C121: 横港社区23组 | D121: 1.50 | E121: 30.00
A122: 118 | B122: 羌云霞 | C122: 横港社区23组 | D122: 3.00 | E122: 60.00
A123: 119 | B123: 顾杰芝 | C123: 横港社区23组 | D123: 1.50 | E123: 30.00
A124: 120 | B124: 顾云芝 | C124: 横港社区23组 | D124: 1.00 | E124: 20.00
A125: 121 | B125: 黄德佑 | C125: 横港社区23组 | D125: 1.20 | E125: 24.00
A126: 122 | B126: 张振银 | C126: 横港社区23组 | D126: 2.00 | E126: 40.00
A127: 123 | B127: 刘丽云 | C127: 横港社区23组 | D127: 1.30 | E127: 26.00
A128: 124 | B128: 孙明华 | C128: 横港社区24组 | D128: 1.80 | E128: 36.00
A129: 125 | B129: 陈云清 | C129: 横港社区24组 | D129: 1.00 | E129: 20.00
A130: 126 | B130: 刘健 | C130: 横港社区24组 | D130: 0.60 | E130: 12.00
A131: 127 | B131: 圣志忠 | C131: 横港社区24组 | D131: 2.50 | E131: 50.00
A132: 128 | B132: 钱淑明 | C132: 横港社区24组 | D132: 1.60 | E132: 32.00
A133: 129 | B133: 圣学忠 | C133: 横港社区24组 | D133: 1.80 | E133: 36.00
A134: 130 | B134: 刘志华 | C134: 横港社区24组 | D134: 0.60 | E134: =D134*20 -> 12.00
A135: 131 | B135: 陆贵英 | C135: 横港社区24组 | D135: 1.00 | E135: 20.00
A136: 132 | B136: 孙有华 | C136: 横港社区24组 | D136: 0.90 | E136: 18.00
A137: 133 | B137: 凌德明 | C137: 横港社区24组 | D137: 1.50 | E137: 30.00
A138: 134 | B138: 圣学武 | C138: 横港社区24组 | D138: 2.30 | E138: 46.00
A139: 135 | B139: 王德勋 | C139: 横港社区24组 | D139: 0.70 | E139: 14.00
A140: 136 | B140: 孙红兰 | C140: 横港社区24组 | D140: 1.30 | E140: 26.00
A141: 137 | B141: 黄金华 | C141: 横港社区24组 | D141: 1.00 | E141: 20.00
A142: 138 | B142: 张振林 | C142: 横港社区24组 | D142: 3.50 | E142: 70.00
A143: 139 | B143: 张建明 | C143: 横港社区24组 | D143: 1.30 | E143: 26.00
A144: 140 | B144: 陈志刚 | C144: 横港社区24组 | D144: 4.00 | E144: 80.00
A145: 141 | B145: 张淑贤 | C145: 横港社区24组 | D145: 0.30 | E145: 6.00
A146: 142 | B146: 王明芝 | C146: 横港社区24组 | D146: 0.90 | E146: 18.00
A147: 143 | B147: 王广杰 | C147: 横港社区24组 | D147: 1.60 | E147: 32.00
A148: 144 | B148: 王峰 | C148: 横港社区24组 | D148: 1.30 | E148: 26.00
A149: 145 | B149: 李锦兰 | C149: 横港社区24组 | D149: 1.50 | E149: 30.00
A150: 146 | B150: 陈勇英 | C150: 横港社区24组 | D150: 1.40 | E150: 28.00
A151: 147 | B151: 陈德平 | C151: 横港社区24组 | D151: 1.40 | E151: 28.00
A152: 148 | B152: 孙明德 | C152: 横港社区24组 | D152: 0.90 | E152: 18.00
A153: 149 | B153: 陶夕云 | C153: 横港社区24组 | D153: 1.20 | E153: 24.00
A154: 150 | B154: 邢德明 | C154: 横港社区24组 | D154: 0.60 | E154: 12.00
A155: 151 | B155: 张晓华 | C155: 横港社区24组 | D155: 0.60 | E155: 12.00
A156: 152 | B156: 王佩云 | C156: 横港社区24组 | D156: 1.00 | E156: 20.00
A157: 153 | B157: 陈有涛 | C157: 横港社区24组 | D157: 1.30 | E157: 26.00
A158: 154 | B158: 陈淑清 | C158: 横港社区24组 | D158: 1.80 | E158: 36.00
A159: 155 | B159: 周刚 | C159: 横港社区24组 | D159: 1.20 | E159: 24.00
A160: 156 | B160: 吴步清 | C160: 横港社区25组 | D160: 0.90 | E160: 18.00
A161: 157 | B161: 冯建勋 | C161: 横港社区25组 | D161: 2.80 | E161: 56.00
A162: 158 | B162: 吴学志 | C162: 横港社区25组 | D162: 0.60 | E162: 12.00
A163: 159 | B163: 李志均 | C163: 横港社区25组 | D163: 1.00 | E163: 20.00
A164: 160 | B164: 成福田 | C164: 横港社区25组 | D164: 1.40 | E164: 28.00
A165: 161 | B165: 顾明忠 | C165: 横港社区25组 | D165: 1.90 | E165: 38.00
A166: 162 | B166: 单建国 | C166: 横港社区25组 | D166: 2.10 | E166: 42.00
A167: 163 | B167: 王汝仁 | C167: 横港社区25组 | D167: 0.50 | E167: 10.00
A168: 164 | B168: 单建均 | C168: 横港社区25组 | D168: 1.70 | E168: 34.00
A169: 165 | B169: 吴广明 | C169: 横港社区25组 | D169: 1.40 | E169: 28.00
A170: 166 | B170: 陈志明 | C170: 横港社区25组 | D170: 0.60 | E170: 12.00
A171: 167 | B171: 李进国 | C171: 横港社区25组 | D171: 0.80 | E171: 16.00
A172: 168 | B172: 凌德清 | C172: 横港社区25组 | D172: 1.50 | E172: 30.00
A173: 169 | B173: 吴建忠 | C173: 横港社区25组 | D173: 0.80 | E173: 16.00
A174: 170 | B174: 吴步进 | C174: 横港社区25组 | D174: 0.50 | E174: 10.00
A175: 171 | B175: 顾民华 | C175: 横港社区25组 | D175: 1.80 | E175: 36.00
A176: 172 | B176: 羌建成 | C176: 横港社区25组 | D176: 0.60 | E176: 12.00
A177: 173 | B177: 王汝芳 | C177: 横港社区25组 | D177: 1.60 | E177: 32.00
A178: 174 | B178: 单建华 | C178: 横港社区25组 | D178: 1.00 | E178: 20.00
A179: 175 | B179: 吴进义 | C179: 横港社区25组 | D179: 0.60 | E179: 12.00
A180: 176 | B180: 吴进德 | C180: 横港社区26组 | D180: 1.20 | E180: 24.00
A181: 177 | B181: 单志新（家庭农场） | C181: 横港社区3、4、5、6、7、8、9、10、13、24、25、26 | D181: 383.50 | E181: 7,670.00
A182: 178 | B182: 朱学新（家庭农场） | C182: 横港社区1、2 | D182: 89.30 | E182: 1,786.00
A183: 179 | B183: 羌如清（家庭农场） | C183: 横港社区15、16、18、19、21、23 | D183: 60.50 | E183: 1,210.00
A184: 180 | B184: 蔡建华 | C184: 太阳殿村1组 | D184: 2.00 | E184: 40.00
A185: 181 | B185: 胡吉英 | C185: 太阳殿村1组 | D185: 1.50 | E185: 30.00
A186: 182 | B186: 凌建国 | C186: 太阳殿村1组 | D186: 1.50 | E186: 30.00
A187: 183 | B187: 凌建华 | C187: 太阳殿村1组 | D187: 1.50 | E187: 30.00
A188: 184 | B188: 刘建 | C188: 太阳殿村1组 | D188: 1.60 | E188: 32.00
A189: 185 | B189: 刘水平 | C189: 太阳殿村1组 | D189: 2.00 | E189: 40.00
A190: 186 | B190: 季如英 | C190: 太阳殿村1组 | D190: 2.50 | E190: 50.00
A191: 187 | B191: 任淑芹 | C191: 太阳殿村1组 | D191: 2.50 | E191: 50.00
A192: 188 | B192: 王均 | C192: 太阳殿村1组 | D192: 1.50 | E192: 30.00
A193: 189 | B193: 吴建华 | C193: 太阳殿村1组 | D193: 0.80 | E193: 16.00
A194: 190 | B194: 吴夕山 | C194: 太阳殿村1组 | D194: 1.10 | E194: 22.00
A195: 191 | B195: 吴振华 | C195: 太阳殿村1组 | D195: 1.50 | E195: 30.00
A196: 192 | B196: 宣建国 | C196: 太阳殿村1组 | D196: 1.50 | E196: 30.00
A197: 193 | B197: 杨建宝 | C197: 太阳殿村1组 | D197: 1.00 | E197: 20.00
A198: 194 | B198: 杨建春 | C198: 太阳殿村1组 | D198: 1.00 | E198: =D198*20 -> 20.00
A199: 195 | B199: 杨建林 | C199: 太阳殿村1组 | D199: 1.50 | E199: 30.00
A200: 196 | B200: 杨建明 | C200: 太阳殿村1组 | D200: 1.00 | E200: 20.00
... 2003 more rows

Sheet 川姜明细
A1: 2025年夏季秸秆机械化还田（含犁耕深翻）作业补助公示明细表
A2: 川姜 镇（区、园、街道）
A3: 补助标准：20元/亩
A4: 序号 | B4: 补助对象 | C4: 作业地点（组） | D4: 作业面积（亩） | E4: 补助资金（元）
A5: 1 | B5: 丁仁照 | C5: 义成村6、10、11、14、15、19组 | D5: 570.00 | E5: 11,400.00
A6: 2 | B6: 丁明乾 | C6: 姜灶居22组 | D6: 20.00 | E6: 400.00
A7: 3 | B7: 张 伟 | C7: 川南村15、16、17、18、23组 | D7: 190.00 | E7: 3,800.00
A8: 4 | B8: 苗可铜 | C8: 川南村21组 | D8: 55.00 | E8: 1,100.00
A9: 5 | B9: 凡清春 | C9: 川南村11组 | D9: 30.00 | E9: 600.00
A10: 6 | B10: 沈仲彬 | C10: 斜桥村15组、17组 | D10: 40.00 | E10: 800.00
A11: 7 | B11: 武廷桂 | C11: 双桥村1组 | D11: 40.00 | E11: 800.00
A14: 合计 | D14: =SUM(D5:D13) -> 945.00 | E14: =SUM(E5:E13) -> 18,900.00
